Workbook

Sheet Settings
B3: AsOfDate | C3: =TODAY() -> 2021-04-04
B6: Swap Market Conventions
C7: Convention | D7: EUR | E7: USD | F7: GBP | G7: JPY
B8: Fixed Leg | C8: Frequency | D8: ANNUAL | E8: SEMI-ANNUAL | F8: SEMI-ANNUAL | G8: SEMI-ANNUAL
C9: Daycount | D9: 30E/360 | E9: 30/360 | F9: Act/365 | G9: Act/365F
B10: Float Leg | C10: Frequency | D10: SEMI-ANNUAL | E10: QUARTERLY | F10: SEMI-ANNUAL | G10: SEMI-ANNUAL
C11: Daycount | D11: Act/360 | E11: Act/360 | F11: Act/365 | G11: Act/360
B14: Instructions
B15: 1. UPDATING THE WORKBOOK: Refresh each worksheet starting from left to right using Shift-F9. Alternatively use F9 to refresh all worksheets at once.
B16: 2. FORMAT & COLOUR CODING: Yellow boxes are for user input, whilst grey boxes and text in green indicates a formula and should not be modified.
B17: 3. PRICING SWAPS: On the "Swaps" worksheet enter the details in yellow and refresh using Shift-F9
B19: Swap Settings
B20: 1. DISCOUNT FACTORS: Discount Factors can be forced to be 1.0 using the approximation flag in cell C14 on the Swaps worksheet. This simplifies the calculations.
B21: 2. MARKET CONVENTIONS: Swap coupon frequencies can also be annulaized and coupon year fractions forced to 1.0 using the approximation flag in cell C14.

Sheet Discount Factors
B2: Discount Factors | I2: Discount Factor Curves for Pricing | U2: Discount Factor Curves for Risk
B4: Periodicity | C4: 50 | D4: Days
B5: Bump Size | C5: -1 | D5: Bps
B7: Zero Rates | D7: Base | E7: 0.01 | F7: 0.005 | G7: 0 | I7: EUR Discount Factors | L7: USD Discount Factors | O7: GBP Discount Factors | R7: JPY Discount Factors | U7: EUR Bumped Discount Factors | X7: USD Bumped Discount Factors | AA7: GBP Bumped Discount Factors | AD7: JPY Bumped Discount Factors
A8: Row | B8: Date | C8: YearFraction | D8: EUR | E8: USD | F8: GBP | G8: JPY | I8: Date | J8: DiscFact | L8: Date | M8: DiscFact | O8: Date | P8: DiscFact | R8: Date | S8: DiscFact | U8: Date | V8: BumpedDF | X8: Date | Y8: BumpedDF | AA8: Date | AB8: BumpedDF | AD8: Date | AE8: BumpedDF
A9: 1 | B9: =AsOfDate -> 2021-04-04 | C9: 0.002739726027 | D9: -0.005 | E9: =$D9+E$7 -> 0.005 | F9: =$D9+F$7 -> 0 | G9: =$D9+G$7 -> -0.005 | I9: =AsOfDate -> 2021-04-04 | J9: =EXP(-$D9*$C9) -> 1.000013699 | L9: =AsOfDate -> 2021-04-04 | M9: =EXP(-$E9*$C9) -> 0.9999863015 | O9: =AsOfDate -> 2021-04-04 | P9: =EXP(-$F9*$C9) -> 1 | R9: =AsOfDate -> 2021-04-04 | S9: =EXP(-$G9*$C9) -> 1.000013699 | U9: =I9 -> 2021-04-04 | V9: =1/(1+(D9+BumpSize*0.0001))^C9 -> 1.000014008 | X9: =L9 -> 2021-04-04 | Y9: =EXP(-($E9+BumpSize*0.0001)*$C9) -> 0.9999865754 | AA9: =O9 -> 2021-04-04 | AB9: =EXP(-($F9+BumpSize*0.0001)*$C9) -> 1.000000274 | AD9: =R9 -> 2021-04-04 | AE9: =EXP(-($G9+BumpSize*0.0001)*$C9) -> 1.000013973
A10: =A9+1 -> 2 | B10: =B9+Periodicity -> 2021-05-24 | C10: =(B10-AsOfDate)/365 -> 0.1369863014 | D10: =D9+0.0001 -> -0.0049 | E10: =$D10+E$7 -> 0.0051 | F10: 0.0001 | G10: -0.0049 | I10: =I9+Periodicity -> 2021-05-24 | J10: =EXP(-$D10*$C10) -> 1.000671458 | L10: =L9+Periodicity -> 2021-05-24 | M10: =EXP(-$E10*$C10) -> 0.9993016138 | O10: =O9+Periodicity -> 2021-05-24 | P10: =EXP(-$F10*$C10) -> 0.9999863015 | R10: =R9+Periodicity -> 2021-05-24 | S10: =EXP(-$G10*$C10) -> 1.000671458 | U10: 2021-05-24 | V10: 1.000686885 | X10: 2021-05-24 | Y10: 0.999315303 | AA10: 2021-05-24 | AB10: 1 | AD10: 2021-05-24 | AE10: 1.000685166
A11: =A10+1 -> 3 | B11: 2021-07-13 | C11: 0.2739726027 | D11: =D10+0.0001 -> -0.0048 | E11: 0.0052 | F11: 0.0002 | G11: -0.0048 | I11: 2021-07-13 | J11: 1.001315934 | L11: 2021-07-13 | M11: 0.9985763568 | O11: 2021-07-13 | P11: 0.999945207 | R11: 2021-07-13 | S11: 1.001315934 | U11: 2021-07-13 | V11: 1.001346672 | X11: 2021-07-13 | Y11: 0.9986037154 | AA11: 2021-07-13 | AB11: 0.9999726031 | AD11: 2021-07-13 | AE11: 1.001343367
A12: 4 | B12: 2021-09-01 | C12: 0.4109589041 | D12: -0.0047 | E12: 0.0053 | F12: 0.0003 | G12: -0.0047 | I12: 2021-09-01 | J12: 1.001933373 | L12: 2021-09-01 | M12: 0.9978242881 | O12: 2021-09-01 | P12: 0.9998767199 | R12: 2021-09-01 | S12: 1.001933373 | U12: 2021-09-01 | V12: 1.001979308 | X12: 2021-09-01 | Y12: 0.9978652954 | AA12: 2021-09-01 | AB12: 0.9999178116 | AD12: 2021-09-01 | AE12: 1.00197455
A13: 5 | B13: 2021-10-21 | C13: 0.5479452055 | D13: -0.0046 | E13: 0.0054 | F13: 0.0004 | G13: -0.0046 | I13: 2021-10-21 | J13: 1.002523727 | L13: 2021-10-21 | M13: 0.9970454691 | O13: 2021-10-21 | P13: 0.9997808459 | R13: 2021-10-21 | S13: 1.002523727 | U13: 2021-10-21 | V13: 1.002584748 | X13: 2021-10-21 | Y13: 0.9971001033 | AA13: 2021-10-21 | AB13: 0.9998356299 | AD13: 2021-10-21 | AE13: 1.002578662
A14: 6 | B14: 2021-12-10 | C14: 0.6849315068 | D14: -0.0045 | E14: 0.0055 | F14: 0.0005 | G14: -0.0045 | I14: 2021-12-10 | J14: 1.003086947 | L14: 2021-12-10 | M14: 0.9962399634 | O14: 2021-12-10 | P14: 0.9996575929 | R14: 2021-12-10 | S14: 1.003086947 | U14: 2021-12-10 | V14: 1.003162945 | X14: 2021-12-10 | Y14: 0.9963082014 | AA14: 2021-12-10 | AB14: 0.9997260649 | AD14: 2021-12-10 | AE14: 1.003155654
A15: 7 | B15: 2022-01-29 | C15: 0.8219178082 | D15: -0.0044 | E15: 0.0056 | F15: 0.0006 | G15: -0.0044 | I15: 2022-01-29 | J15: 1.003622986 | L15: 2022-01-29 | M15: 0.9954078366 | O15: 2022-01-29 | P15: 0.9995069709 | R15: 2022-01-29 | S15: 1.003622986 | U15: 2022-01-29 | V15: 1.003713856 | X15: 2022-01-29 | Y15: 0.9954896544 | AA15: 2022-01-29 | AB15: 0.9995891255 | AD15: 2022-01-29 | AE15: 1.003705479
A16: 8 | B16: 2022-03-20 | C16: 0.9589041096 | D16: -0.0043 | E16: 0.0057 | F16: 0.0007 | G16: -0.0043 | I16: 2022-03-20 | J16: 1.0041318 | L16: 2022-03-20 | M16: 0.9945491566 | O16: 2022-03-20 | P16: 0.9993289923 | R16: 2022-03-20 | S16: 1.0041318 | U16: 2022-03-20 | V16: 1.00423744 | X16: 2022-03-20 | Y16: 0.9946445289 | AA16: 2022-03-20 | AB16: 0.999424823 | AD16: 2022-03-20 | AE16: 1.004228091
A17: 9 | B17: 2022-05-09 | C17: 1.095890411 | D17: -0.0042 | E17: 0.0058 | F17: 0.0008 | G17: -0.0042 | I17: 2022-05-09 | J17: 1.004613349 | L17: 2022-05-09 | M17: 0.9936639933 | O17: 2022-05-09 | P17: 0.9991236719 | R17: 2022-05-09 | S17: 1.004613349 | U17: 2022-05-09 | V17: 1.004733658 | X17: 2022-05-09 | Y17: 0.9937728939 | AA17: 2022-05-09 | AB17: 0.9992331709 | AD17: 2022-05-09 | AE17: 1.004723449
A18: 10 | B18: 2022-06-28 | C18: 1.232876712 | D18: -0.0041 | E18: 0.0059 | F18: 0.0009 | G18: -0.0041 | I18: 2022-06-28 | J18: 1.005067592 | L18: 2022-06-28 | M18: 0.9927524187 | O18: 2022-06-28 | P18: 0.9988910263 | R18: 2022-06-28 | S18: 1.005067592 | U18: 2022-06-28 | V18: 1.005202473 | X18: 2022-06-28 | Y18: 0.9928748204 | AA18: 2022-06-28 | AB18: 0.9990141849 | AD18: 2022-06-28 | AE18: 1.005191512
A19: 11 | B19: 2022-08-17 | C19: 1.369863014 | D19: -0.004 | E19: 0.006 | F19: 0.001 | G19: -0.004 | I19: 2022-08-17 | J19: 1.005494492 | L19: 2022-08-17 | M19: 0.991814507 | O19: 2022-08-17 | P19: 0.9986310748 | R19: 2022-08-17 | S19: 1.005494492 | U19: 2022-08-17 | V19: 1.00564385 | X19: 2022-08-17 | Y19: 0.9919503813 | AA19: 2022-08-17 | AB19: 0.998767883 | AD19: 2022-08-17 | AE19: 1.00563224
A20: 12 | B20: 2022-10-06 | C20: 1.506849315 | D20: -0.0039 | E20: 0.0061 | F20: 0.0011 | G20: -0.0039 | I20: 2022-10-06 | J20: 1.005894014 | L20: 2022-10-06 | M20: 0.9908503345 | O20: 2022-10-06 | P20: 0.9983438387 | R20: 2022-10-06 | S20: 1.005894014 | U20: 2022-10-06 | V20: 1.006057759 | X20: 2022-10-06 | Y20: 0.9909996519 | AA20: 2022-10-06 | AB20: 0.9984942854 | AD20: 2022-10-06 | AE20: 1.006045599
A21: 13 | B21: 2022-11-25 | C21: 1.643835616 | D21: -0.0038 | E21: 0.0062 | F21: 0.0012 | G21: -0.0038 | I21: 2022-11-25 | J21: 1.006266126 | L21: 2022-11-25 | M21: 0.9898599794 | O21: 2022-11-25 | P21: 0.9980293416 | R21: 2022-11-25 | S21: 1.006266126 | U21: 2022-11-25 | V21: 1.006444168 | X21: 2022-11-25 | Y21: 0.9900227095 | AA21: 2022-11-25 | AB21: 0.9981934147 | AD21: 2022-11-25 | AE21: 1.006431553
A22: 14 | B22: 2023-01-14 | C22: 1.780821918 | D22: -0.0037 | E22: 0.0063 | F22: 0.0013 | G22: -0.0037 | I22: 2023-01-14 | J22: 1.006610797 | L22: 2023-01-14 | M22: 0.9888435222 | O22: 2023-01-14 | P22: 0.9976876092 | R22: 2023-01-14 | S22: 1.006610797 | U22: 2023-01-14 | V22: 1.00680305 | X22: 2023-01-14 | Y22: 0.9890196333 | AA22: 2023-01-14 | AB22: 0.9978652954 | AD22: 2023-01-14 | AE22: 1.006790072
A23: 15 | B23: 2023-03-05 | C23: 1.917808219 | D23: -0.0036 | E23: 0.0064 | F23: 0.0014 | G23: -0.0036 | I23: 2023-03-05 | J23: 1.006927998 | L23: 2023-03-05 | M23: 0.9878010454 | O23: 2023-03-05 | P23: 0.9973186697 | R23: 2023-03-05 | S23: 1.006927998 | U23: 2023-03-05 | V23: 1.00713438 | X23: 2023-03-05 | Y23: 0.9879905048 | AA23: 2023-03-05 | AB23: 0.9975099546 | AD23: 2023-03-05 | AE23: 1.007121126
A24: 16 | B24: 2023-04-24 | C24: 2.054794521 | D24: -0.0035 | E24: 0.0065 | F24: 0.0015 | G24: -0.0035 | I24: 2023-04-24 | J24: 1.007217704 | L24: 2023-04-24 | M24: 0.9867326334 | O24: 2023-04-24 | P24: 0.9969225533 | R24: 2023-04-24 | S24: 1.007217704 | U24: 2023-04-24 | V24: 1.007438134 | X24: 2023-04-24 | Y24: 0.9869354075 | AA24: 2023-04-24 | AB24: 0.9971274214 | AD24: 2023-04-24 | AE24: 1.007424688
A25: 17 | B25: 2023-06-13 | C25: 2.191780822 | D25: -0.0034 | E25: 0.0066 | F25: 0.0016 | G25: -0.0034 | I25: 2023-06-13 | J25: 1.00747989 | L25: 2023-06-13 | M25: 0.9856383729 | O25: 2023-06-13 | P25: 0.9964992925 | R25: 2023-06-13 | S25: 1.00747989 | U25: 2023-06-13 | V25: 1.007714292 | X25: 2023-06-13 | Y25: 0.9858544269 | AA25: 2023-06-13 | AB25: 0.9967177272 | AD25: 2023-06-13 | AE25: 1.007700732
A26: 18 | B26: 2023-08-02 | C26: 2.328767123 | D26: -0.0033 | E26: 0.0067 | F26: 0.0017 | G26: -0.0033 | I26: 2023-08-02 | J26: 1.007714536 | L26: 2023-08-02 | M26: 0.9845183524 | O26: 2023-08-02 | P26: 0.996048922 | R26: 2023-08-02 | S26: 1.007714536 | U26: 2023-08-02 | V26: 1.007962835 | X26: 2023-08-02 | Y26: 0.9847476505 | AA26: 2023-08-02 | AB26: 0.9962809056 | AD26: 2023-08-02 | AE26: 1.007949237
A27: 19 | B27: 2023-09-21 | C27: 2.465753425 | D27: -0.0032 | E27: 0.0068 | F27: 0.0018 | G27: -0.0032 | I27: 2023-09-21 | J27: 1.007921622 | L27: 2023-09-21 | M27: 0.9833726626 | O27: 2023-09-21 | P27: 0.9955714788 | R27: 2023-09-21 | S27: 1.007921622 | U27: 2023-09-21 | V27: 1.008183747 | X27: 2023-09-21 | Y27: 0.9836151679 | AA27: 2023-09-21 | AB27: 0.9958169924 | AD27: 2023-09-21 | AE27: 1.008170182
A28: 20 | B28: 2023-11-10 | C28: 2.602739726 | D28: -0.0031 | E28: 0.0069 | F28: 0.0019 | G28: -0.0031 | I28: 2023-11-10 | J28: 1.008101131 | L28: 2023-11-10 | M28: 0.982201396 | O28: 2023-11-10 | P28: 0.9950670019 | R28: 2023-11-10 | S28: 1.008101131 | U28: 2023-11-10 | V28: 1.008377014 | X28: 2023-11-10 | Y28: 0.9824570707 | AA28: 2023-11-10 | AB28: 0.9953260257 | AD28: 2023-11-10 | AE28: 1.008363548
A29: 21 | B29: 2023-12-30 | C29: 2.739726027 | D29: -0.003 | E29: 0.007 | F29: 0.002 | G29: -0.003 | I29: 2023-12-30 | J29: 1.008253048 | L29: 2023-12-30 | M29: 0.9810046472 | O29: 2023-12-30 | P29: 0.9945355328 | R29: 2023-12-30 | S29: 1.008253048 | U29: 2023-12-30 | V29: 1.008542624 | X29: 2023-12-30 | Y29: 0.9812734524 | AA29: 2023-12-30 | AB29: 0.9948080456 | AD29: 2023-12-30 | AE29: 1.00852932
A30: 22 | B30: 2024-02-18 | C30: 2.876712329 | D30: -0.0029 | E30: 0.0071 | F30: 0.0021 | G30: -0.0029 | I30: 2024-02-18 | J30: 1.008377361 | L30: 2024-02-18 | M30: 0.9797825129 | O30: 2024-02-18 | P30: 0.9939771148 | R30: 2024-02-18 | S30: 1.008377361 | U30: 2024-02-18 | V30: 1.008680568 | X30: 2024-02-18 | Y30: 0.9800644087 | AA30: 2024-02-18 | AB30: 0.9942630946 | AD30: 2024-02-18 | AE30: 1.008667484
A31: 23 | B31: 2024-04-08 | C31: 3.01369863 | D31: -0.0028 | E31: 0.0072 | F31: 0.0022 | G31: -0.0028 | I31: 2024-04-08 | J31: 1.008474059 | L31: 2024-04-08 | M31: 0.9785350916 | O31: 2024-04-08 | P31: 0.9933917939 | R31: 2024-04-08 | S31: 1.008474059 | U31: 2024-04-08 | V31: 1.008790838 | X31: 2024-04-08 | Y31: 0.978830037 | AA31: 2024-04-08 | AB31: 0.9936912173 | AD31: 2024-04-08 | AE31: 1.008778029
A32: 24 | B32: 2024-05-28 | C32: 3.150684932 | D32: -0.0027 | E32: 0.0073 | F32: 0.0023 | G32: -0.0027 | I32: 2024-05-28 | J32: 1.008543135 | L32: 2024-05-28 | M32: 0.9772624838 | O32: 2024-05-28 | P32: 0.9927796178 | R32: 2024-05-28 | S32: 1.008543135 | U32: 2024-05-28 | V32: 1.008873429 | X32: 2024-05-28 | Y32: 0.9775704369 | AA32: 2024-05-28 | AB32: 0.9930924606 | AD32: 2024-05-28 | AE32: 1.008860946
A33: 25 | B33: 2024-07-17 | C33: 3.287671233 | D33: -0.0026 | E33: 0.0074 | F33: 0.0024 | G33: -0.0026 | I33: 2024-07-17 | J33: 1.008584583 | L33: 2024-07-17 | M33: 0.9759647919 | O33: 2024-07-17 | P33: 0.9921406366 | R33: 2024-07-17 | S33: 1.008584583 | U33: 2024-07-17 | V33: 1.008928339 | X33: 2024-07-17 | Y33: 0.9762857098 | AA33: 2024-07-17 | AB33: 0.9924668735 | AD33: 2024-07-17 | AE33: 1.008916227
A34: 26 | B34: 2024-09-05 | C34: 3.424657534 | D34: -0.0025 | E34: 0.0075 | F34: 0.0025 | G34: -0.0025 | I34: 2024-09-05 | J34: 1.0085984 | L34: 2024-09-05 | M34: 0.9746421203 | O34: 2024-09-05 | P34: 0.9914749027 | R34: 2024-09-05 | S34: 1.0085984 | U34: 2024-09-05 | V34: 1.008955568 | X34: 2024-09-05 | Y34: 0.974975959 | AA34: 2024-09-05 | AB34: 0.991814507 | AD34: 2024-09-05 | AE34: 1.008943869
A35: 27 | B35: 2024-10-25 | C35: 3.561643836 | D35: -0.0024 | E35: 0.0076 | F35: 0.0026 | G35: -0.0024 | I35: 2024-10-25 | J35: 1.008584583 | L35: 2024-10-25 | M35: 0.9732945752 | O35: 2024-10-25 | P35: 0.9907824703 | R35: 2024-10-25 | S35: 1.008584583 | U35: 2024-10-25 | V35: 1.008955118 | X35: 2024-10-25 | Y35: 0.9736412898 | AA35: 2024-10-25 | AB35: 0.9911354146 | AD35: 2024-10-25 | AE35: 1.008943869
A36: 28 | B36: 2024-12-14 | C36: 3.698630137 | D36: -0.0023 | E36: 0.0077 | F36: 0.0027 | G36: -0.0023 | I36: 2024-12-14 | J36: 1.008543135 | L36: 2024-12-14 | M36: 0.9719222649 | O36: 2024-12-14 | P36: 0.9900633962 | R36: 2024-12-14 | S36: 1.008543135 | U36: 2024-12-14 | V36: 1.008926991 | X36: 2024-12-14 | Y36: 0.9722818095 | AA36: 2024-12-14 | AB36: 0.9904296517 | AD36: 2024-12-14 | AE36: 1.008916227
A37: 29 | B37: 2025-02-02 | C37: 3.835616438 | D37: -0.0022 | E37: 0.0078 | F37: 0.0028 | G37: -0.0022 | I37: 2025-02-02 | J37: 1.008474059 | L37: 2025-02-02 | M37: 0.9705252995 | O37: 2025-02-02 | P37: 0.9893177389 | R37: 2025-02-02 | S37: 1.008474059 | U37: 2025-02-02 | V37: 1.008871196 | X37: 2025-02-02 | Y37: 0.9708976272 | AA37: 2025-02-02 | AB37: 0.989697276 | AD37: 2025-02-02 | AE37: 1.008860946
A38: 30 | B38: 2025-03-24 | C38: 3.97260274 | D38: -0.0021 | E38: 0.0079 | F38: 0.0029 | G38: -0.0021 | I38: 2025-03-24 | J38: 1.008377361 | L38: 2025-03-24 | M38: 0.9691037907 | O38: 2025-03-24 | P38: 0.9885455595 | R38: 2025-03-24 | S38: 1.008377361 | U38: 2025-03-24 | V38: 1.008787741 | X38: 2025-03-24 | Y38: 0.9694888537 | AA38: 2025-03-24 | AB38: 0.9889383474 | AD38: 2025-03-24 | AE38: 1.008778029
A39: 31 | B39: 2025-05-13 | C39: 4.109589041 | D39: -0.002 | E39: 0.008 | F39: 0.003 | G39: -0.002 | I39: 2025-05-13 | J39: 1.008253048 | L39: 2025-05-13 | M39: 0.9676578525 | O39: 2025-05-13 | P39: 0.9877469208 | R39: 2025-05-13 | S39: 1.008253048 | U39: 2025-05-13 | V39: 1.008676637 | X39: 2025-05-13 | Y39: 0.9680556019 | AA39: 2025-05-13 | AB39: 0.9881529276 | AD39: 2025-05-13 | AE39: 1.008667484
A40: 32 | B40: 2025-07-02 | C40: 4.246575342 | D40: -0.0019 | E40: 0.0081 | F40: 0.0031 | G40: -0.0019 | I40: 2025-07-02 | J40: 1.008101131 | L40: 2025-07-02 | M40: 0.9661876004 | O40: 2025-07-02 | P40: 0.986921888 | R40: 2025-07-02 | S40: 1.008101131 | U40: 2025-07-02 | V40: 1.008537897 | X40: 2025-07-02 | Y40: 0.9665979864 | AA40: 2025-07-02 | AB40: 0.9873410808 | AD40: 2025-07-02 | AE40: 1.00852932
A41: 33 | B41: 2025-08-21 | C41: 4.383561644 | D41: -0.0018 | E41: 0.0082 | F41: 0.0032 | G41: -0.0018 | I41: 2025-08-21 | J41: 1.007921622 | L41: 2025-08-21 | M41: 0.9646931519 | O41: 2025-08-21 | P41: 0.9860705283 | R41: 2025-08-21 | S41: 1.007921622 | U41: =I41 -> 2025-08-21 | V41: =1/(1+(D41+BumpSize*0.0001))^C41 -> 1.008371536 | X41: =L41 -> 2025-08-21 | Y41: =EXP(-($E41+BumpSize*0.0001)*$C41) -> 0.9651161238 | AA41: =O41 -> 2025-08-21 | AB41: =EXP(-($F41+BumpSize*0.0001)*$C41) -> 0.9865028731 | AD41: =R41 -> 2025-08-21 | AE41: =EXP(-($G41+BumpSize*0.0001)*$C41) -> 1.008363548
A42: 34 | B42: 2025-10-10 | C42: =(B42-AsOfDate)/365 -> 4.520547945 | D42: -0.0017 | E42: =$D42+E$7 -> 0.0083 | F42: 0.0033 | G42: -0.0017 | I42: =I41+Periodicity -> 2025-10-10 | J42: 1.007714536 | L42: =L41+Periodicity -> 2025-10-10 | M42: 0.9631746263 | O42: =O41+Periodicity -> 2025-10-10 | P42: 0.985192911 | R42: =R41+Periodicity -> 2025-10-10 | S42: 1.007714536 | U42: 2025-10-10 | V42: 1.008177574 | X42: 2025-10-10 | Y42: 0.9636101324 | AA42: 2025-10-10 | AB42: 0.9856383729 | AD42: 2025-10-10 | AE42: 1.008170182
A43: 35 | B43: 2025-11-29 | C43: 4.657534247 | D43: -0.0016 | E43: 0.0084 | F43: 0.0034 | G43: -0.0016 | I43: 2025-11-29 | J43: 1.00747989 | L43: 2025-11-29 | M43: 0.9616321445 | O43: 2025-11-29 | P43: 0.9842891077 | R43: 2025-11-29 | S43: 1.00747989 | U43: 2025-11-29 | V43: 1.007956028 | X43: 2025-11-29 | Y43: 0.9620801322 | AA43: 2025-11-29 | AB43: 0.9847476505 | AD43: 2025-11-29 | AE43: 1.007949237
A44: 36 | B44: 2026-01-18 | C44: 4.794520548 | D44: -0.0015 | E44: 0.0085 | F44: 0.0035 | G44: -0.0015 | I44: 2026-01-18 | J44: 1.007217704 | L44: 2026-01-18 | M44: 0.9600658293 | O44: 2026-01-18 | P44: 0.9833591918 | R44: 2026-01-18 | S44: 1.007217704 | U44: 2026-01-18 | V44: 1.007706923 | X44: 2026-01-18 | Y44: 0.9605262452 | AA44: 2026-01-18 | AB44: 0.9838307784 | AD44: 2026-01-18 | AE44: 1.007700732
A45: 37 | B45: 2026-03-09 | C45: 4.931506849 | D45: -0.0014 | E45: 0.0086 | F45: 0.0036 | G45: -0.0014 | I45: 2026-03-09 | J45: 1.006927998 | L45: 2026-03-09 | M45: 0.9584758055 | O45: 2026-03-09 | P45: 0.9824032389 | R45: 2026-03-09 | S45: 1.006927998 | U45: 2026-03-09 | V45: 1.007430282 | X45: 2026-03-09 | Y45: 0.958948595 | AA45: 2026-03-09 | AB45: 0.9828878312 | AD45: 2026-03-09 | AE45: 1.007424688
A46: 38 | B46: 2026-04-28 | C46: 5.068493151 | D46: -0.0013 | E46: 0.0087 | F46: 0.0037 | G46: -0.0013 | I46: 2026-04-28 | J46: 1.006610797 | L46: 2026-04-28 | M46: 0.9568621992 | O46: 2026-04-28 | P46: 0.9814213267 | R46: 2026-04-28 | S46: 1.006610797 | U46: 2026-04-28 | V46: 1.007126133 | X46: 2026-04-28 | Y46: 0.957347307 | AA46: 2026-04-28 | AB46: 0.9819188855 | AD46: 2026-04-28 | AE46: 1.007121126
A47: 39 | B47: 2026-06-17 | C47: 5.205479452 | D47: -0.0012 | E47: 0.0088 | F47: 0.0038 | G47: -0.0012 | I47: 2026-06-17 | J47: 1.006266126 | L47: 2026-06-17 | M47: 0.9552251385 | O47: 2026-06-17 | P47: 0.9804135349 | R47: 2026-06-17 | S47: 1.006266126 | U47: 2026-06-17 | V47: 1.006794504 | X47: 2026-06-17 | Y47: 0.9557225084 | AA47: 2026-06-17 | AB47: 0.98092402 | AD47: 2026-06-17 | AE47: 1.006790072
A48: 40 | B48: 2026-08-06 | C48: 5.342465753 | D48: -0.0011 | E48: 0.0089 | F48: 0.0039 | G48: -0.0011 | I48: 2026-08-06 | J48: 1.005894014 | L48: 2026-08-06 | M48: 0.9535647532 | O48: 2026-08-06 | P48: 0.9793799453 | R48: 2026-08-06 | S48: 1.005894014 | U48: 2026-08-06 | V48: 1.006435428 | X48: 2026-08-06 | Y48: 0.954074328 | AA48: 2026-08-06 | AB48: 0.9799033155 | AD48: 2026-08-06 | AE48: 1.006431553
A49: 41 | B49: 2026-09-25 | C49: 5.479452055 | D49: -0.001 | E49: 0.009 | F49: 0.004 | G49: -0.001 | I49: 2026-09-25 | J49: 1.005494492 | L49: 2026-09-25 | M49: 0.9518811747 | O49: 2026-09-25 | P49: 0.9783206417 | R49: 2026-09-25 | S49: 1.005494492 | U49: 2026-09-25 | V49: 1.006048936 | X49: 2026-09-25 | Y49: 0.9524028963 | AA49: 2026-09-25 | AB49: 0.9788568547 | AD49: 2026-09-25 | AE49: 1.006045599
A50: 42 | B50: 2026-11-14 | C50: 5.616438356 | D50: -0.0009 | E50: 0.0091 | F50: 0.0041 | G50: -0.0009 | I50: 2026-11-14 | J50: 1.005067592 | L50: 2026-11-14 | M50: 0.9501745361 | O50: 2026-11-14 | P50: 0.9772357098 | R50: 2026-11-14 | S50: 1.005067592 | U50: 2026-11-14 | V50: 1.005635066 | X50: 2026-11-14 | Y50: 0.9507083457 | AA50: 2026-11-14 | AB50: 0.9777847224 | AD50: 2026-11-14 | AE50: 1.00563224
A51: 43 | B51: 2027-01-03 | C51: 5.753424658 | D51: -0.0008 | E51: 0.0092 | F51: 0.0042 | G51: -0.0008 | I51: 2027-01-03 | J51: 1.004613349 | L51: 2027-01-03 | M51: 0.9484449722 | O51: 2027-01-03 | P51: 0.9761252376 | R51: 2027-01-03 | S51: 1.004613349 | U51: 2027-01-03 | V51: 1.005193855 | X51: 2027-01-03 | Y51: 0.9489908099 | AA51: 2027-01-03 | AB51: 0.9766870055 | AD51: 2027-01-03 | AE51: 1.005191512
A52: 44 | B52: 2027-02-22 | C52: 5.890410959 | D52: -0.0007 | E52: 0.0093 | F52: 0.0043 | G52: -0.0007 | I52: 2027-02-22 | J52: 1.0041318 | L52: 2027-02-22 | M52: 0.9466926195 | O52: 2027-02-22 | P52: 0.9749893149 | R52: 2027-02-22 | S52: 1.0041318 | U52: 2027-02-22 | V52: 1.004725344 | X52: 2027-02-22 | Y52: 0.9472504246 | AA52: 2027-02-22 | AB52: 0.9755637929 | AD52: 2027-02-22 | AE52: 1.004723449
A53: 45 | B53: 2027-04-13 | C53: 6.02739726 | D53: -0.0006 | E53: 0.0094 | F53: 0.0044 | G53: -0.0006 | I53: 2027-04-13 | J53: 1.003622986 | L53: 2027-04-13 | M53: 0.9449176159 | O53: 2027-04-13 | P53: 0.9738280335 | R53: 2027-04-13 | S53: 1.003622986 | U53: 2027-04-13 | V53: 1.004229575 | X53: 2027-04-13 | Y53: 0.9454873269 | AA53: 2027-04-13 | AB53: 0.9744151752 | AD53: 2027-04-13 | AE53: 1.004228091
A54: 46 | B54: 2027-06-02 | C54: 6.164383562 | D54: -0.0005 | E54: 0.0095 | F54: 0.0045 | G54: -0.0005 | I54: 2027-06-02 | J54: 1.003086947 | L54: 2027-06-02 | M54: 0.9431201011 | O54: 2027-06-02 | P54: 0.9726414871 | R54: 2027-06-02 | S54: 1.003086947 | U54: 2027-06-02 | V54: 1.003706593 | X54: 2027-06-02 | Y54: 0.9437016557 | AA54: 2027-06-02 | AB54: 0.9732412455 | AD54: 2027-06-02 | AE54: 1.003705479
A55: 47 | B55: 2027-07-22 | C55: 6.301369863 | D55: -0.0004 | E55: 0.0096 | F55: 0.0046 | G55: -0.0004 | I55: 2027-07-22 | J55: 1.002523727 | L55: 2027-07-22 | M55: 0.9413002163 | O55: 2027-07-22 | P55: 0.9714297716 | R55: 2027-07-22 | S55: 1.002523727 | U55: 2027-07-22 | V55: 1.003156444 | X55: 2027-07-22 | Y55: 0.9418935513 | AA55: 2027-07-22 | AB55: 0.9720420984 | AD55: 2027-07-22 | AE55: 1.003155654
A56: 48 | B56: 2027-09-10 | C56: 6.438356164 | D56: -0.0003 | E56: 0.0097 | F56: 0.0047 | G56: -0.0003 | I56: 2027-09-10 | J56: 1.001933373 | L56: 2027-09-10 | M56: 0.9394581042 | O56: 2027-09-10 | P56: 0.9701929847 | R56: 2027-09-10 | S56: 1.001933373 | U56: 2027-09-10 | V56: 1.002579178 | X56: 2027-09-10 | Y56: 0.9400631556 | AA56: 2027-09-10 | AB56: 0.9708178306 | AD56: 2027-09-10 | AE56: 1.002578662
A57: =A56+1 -> 49 | B57: 2027-10-30 | C57: 6.575342466 | D57: -0.0002 | E57: 0.0098 | F57: 0.0048 | G57: -0.0002 | I57: 2027-10-30 | J57: 1.001315934 | L57: 2027-10-30 | M57: 0.9375939094 | O57: 2027-10-30 | P57: 0.968931226 | R57: 2027-10-30 | S57: 1.001315934 | U57: 2027-10-30 | V57: 1.001974846 | X57: 2027-10-30 | Y57: 0.9382106122 | AA57: 2027-10-30 | AB57: 0.9695685409 | AD57: 2027-10-30 | AE57: 1.00197455
A58: 50 | B58: 2027-12-19 | C58: 6.712328767 | D58: -0.0001 | E58: 0.0099 | F58: 0.0049 | G58: -0.0001 | I58: 2027-12-19 | J58: 1.000671458 | L58: 2027-12-19 | M58: 0.9357077775 | O58: 2027-12-19 | P58: 0.967644597 | R58: 2027-12-19 | S58: 1.000671458 | U58: 2027-12-19 | V58: 1.001343502 | X58: 2027-12-19 | Y58: 0.9363360661 | AA58: 2027-12-19 | AB58: 0.9682943299 | AD58: 2027-12-19 | AE58: 1.001343367
A59: 51 | B59: 2028-02-07 | C59: 6.849315068 | D59: -2.439454888e-19 | E59: 0.01 | F59: 0.005 | G59: -2.439454888e-19 | I59: 2028-02-07 | J59: 1 | L59: 2028-02-07 | M59: 0.933799856 | O59: 2028-02-07 | P59: 0.9663332013 | R59: 2028-02-07 | S59: 1 | U59: 2028-02-07 | V59: 1.0006852 | X59: 2028-02-07 | Y59: 0.934439664 | AA59: 2028-02-07 | AB59: 0.9669953001 | AD59: 2028-02-07 | AE59: 1.000685166
A60: 52 | B60: 2028-03-28 | C60: 6.98630137 | D60: 0.0001 | E60: 0.0101 | F60: 0.0051 | G60: 0.0001 | I60: 2028-03-28 | J60: 0.9993016138 | L60: 2028-03-28 | M60: 0.9318702937 | O60: 2028-03-28 | P60: 0.9649971442 | R60: 2028-03-28 | S60: 0.9993016138 | U60: 2028-03-28 | V60: 1 | X60: 2028-03-28 | Y60: 0.9325215538 | AA60: 2028-03-28 | AB60: 0.9656715559 | AD60: 2028-03-28 | AE60: 1
A61: 53 | B61: 2028-05-17 | C61: 7.123287671 | D61: 0.0002 | E61: 0.0102 | F61: 0.0052 | G61: 0.0002 | I61: 2028-05-17 | J61: 0.9985763568 | L61: 2028-05-17 | M61: 0.929919241 | O61: 2028-05-17 | P61: 0.963636533 | R61: 2028-05-17 | S61: 0.9985763568 | U61: 2028-05-17 | V61: 0.9992879605 | X61: 2028-05-17 | Y61: 0.9305818852 | AA61: 2028-05-17 | AB61: 0.9643232036 | AD61: 2028-05-17 | AE61: 0.9992879249
A62: 54 | B62: 2028-07-06 | C62: 7.260273973 | D62: 0.0003 | E62: 0.0103 | F62: 0.0053 | G62: 0.0003 | I62: 2028-07-06 | J62: 0.9978242881 | L62: 2028-07-06 | M62: 0.9279468497 | O62: 2028-07-06 | P62: 0.9622514768 | R62: 2028-07-06 | S62: 0.9978242881 | U62: 2028-07-06 | V62: 0.9985491439 | X62: 2028-07-06 | Y62: 0.9286208091 | AA62: 2028-07-06 | AB62: 0.9629503514 | AD62: 2028-07-06 | AE62: 0.9985489989
A63: 55 | B63: 2028-08-25 | C63: 7.397260274 | D63: 0.0004 | E63: 0.0104 | F63: 0.0054 | G63: 0.0004 | I63: 2028-08-25 | J63: 0.9970454691 | L63: 2028-08-25 | M63: 0.9259532729 | O63: 2028-08-25 | P63: 0.9608420866 | R63: 2028-08-25 | S63: 0.9970454691 | U63: 2028-08-25 | V63: 0.9977836145 | X63: 2028-08-25 | Y63: 0.926638478 | AA63: 2028-08-25 | AB63: 0.9615531094 | AD63: 2028-08-25 | AE63: 0.9977832825
A64: 56 | B64: 2028-10-14 | C64: 7.534246575 | D64: 0.0005 | E64: 0.0105 | F64: 0.0055 | G64: 0.0005 | I64: 2028-10-14 | J64: 0.9962399634 | L64: 2028-10-14 | M64: 0.9239386653 | O64: 2028-10-14 | P64: 0.9594084751 | R64: 2028-10-14 | S64: 0.9962399634 | U64: 2028-10-14 | V64: 0.9969914388 | X64: 2028-10-14 | Y64: 0.9246350458 | AA64: 2028-10-14 | AB64: 0.9601315895 | AD64: 2028-10-14 | AE64: 0.996990838
A65: 57 | B65: 2028-12-03 | C65: 7.671232877 | D65: 0.0006 | E65: 0.0106 | F65: 0.0056 | G65: 0.0006 | I65: 2028-12-03 | J65: 0.9954078366 | L65: 2028-12-03 | M65: 0.921903183 | O65: 2028-12-03 | P65: 0.9579507571 | R65: 2028-12-03 | S65: 0.9954078366 | U65: 2028-12-03 | V65: 0.9961726851 | X65: 2028-12-03 | Y65: 0.9226106678 | AA65: 2028-12-03 | AB65: 0.9586859054 | AD65: 2028-12-03 | AE65: 0.9961717301
A66: 58 | B66: 2029-01-22 | C66: 7.808219178 | D66: 0.0007 | E66: 0.0107 | F66: 0.0057 | G66: 0.0007 | I66: 2029-01-22 | J66: 0.9945491566 | L66: 2029-01-22 | M66: 0.9198469834 | O66: 2029-01-22 | P66: 0.9564690489 | R66: 2029-01-22 | S66: 0.9945491566 | U66: 2029-01-22 | V66: 0.995327424 | X66: 2029-01-22 | Y66: 0.9205655005 | AA66: 2029-01-22 | AB66: 0.9572161726 | AD66: 2029-01-22 | AE66: 0.9953260257
A67: 59 | B67: 2029-03-13 | C67: 7.945205479 | D67: 0.0008 | E67: 0.0108 | F67: 0.0058 | G67: 0.0008 | I67: 2029-03-13 | J67: 0.9936639933 | L67: 2029-03-13 | M67: 0.9177702251 | O67: 2029-03-13 | P67: 0.9549634688 | R67: 2029-03-13 | S67: 0.9936639933 | U67: 2029-03-13 | V67: 0.9944557284 | X67: 2029-03-13 | Y67: 0.9184997021 | AA67: 2029-03-13 | AB67: 0.9557225084 | AD67: 2029-03-13 | AE67: 0.9944537935
A68: 60 | B68: 2029-05-02 | C68: 8.082191781 | D68: 0.0009 | E68: 0.0109 | F68: 0.0059 | G68: 0.0009 | I68: 2029-05-02 | J68: 0.9927524187 | L68: 2029-05-02 | M68: 0.9156730682 | O68: 2029-05-02 | P68: 0.9534341368 | R68: 2029-05-02 | S68: 0.9927524187 | U68: 2029-05-02 | V68: 0.9935576728 | X68: 2029-05-02 | Y68: 0.9164134319 | AA68: 2029-05-02 | AB68: 0.9542050321 | AD68: 2029-05-02 | AE68: 0.9935551046
A69: 61 | B69: 2029-06-21 | C69: 8.219178082 | D69: 0.001 | E69: 0.011 | F69: 0.006 | G69: 0.001 | I69: 2029-06-21 | J69: 0.991814507 | L69: 2029-06-21 | M69: 0.9135556743 | O69: 2029-06-21 | P69: 0.9518811747 | R69: 2029-06-21 | S69: 0.991814507 | U69: 2029-06-21 | V69: 0.9926333344 | X69: 2029-06-21 | Y69: 0.9143068506 | AA69: 2029-06-21 | AB69: 0.9526638644 | AD69: 2029-06-21 | AE69: 0.9926300321
A70: 62 | B70: 2029-08-10 | C70: 8.356164384 | D70: 0.0011 | E70: 0.0111 | F70: 0.0061 | G70: 0.0011 | I70: 2029-08-10 | J70: 0.9908503345 | L70: 2029-08-10 | M70: 0.9114182058 | O70: 2029-08-10 | P70: 0.9503047059 | R70: 2029-08-10 | S70: 0.9908503345 | U70: 2029-08-10 | V70: 0.9916827919 | X70: 2029-08-10 | Y70: 0.9121801202 | AA70: 2029-08-10 | AB70: 0.951099128 | AD70: 2029-08-10 | AE70: 0.9916786513
A71: 63 | B71: 2029-09-29 | C71: 8.493150685 | D71: 0.0012 | E71: 0.0112 | F71: 0.0062 | G71: 0.0012 | I71: 2029-09-29 | J71: 0.9898599794 | L71: 2029-09-29 | M71: 0.9092608269 | O71: 2029-09-29 | P71: 0.9487048558 | R71: 2029-09-29 | S71: 0.9898599794 | U71: 2029-09-29 | V71: 0.9907061264 | X71: 2029-09-29 | Y71: 0.9100334039 | AA71: 2029-09-29 | AB71: 0.9495109474 | AD71: 2029-09-29 | AE71: 0.9907010395
A72: 64 | B72: 2029-11-18 | C72: 8.630136986 | D72: 0.0013 | E72: 0.0113 | F72: 0.0063 | G72: 0.0013 | I72: 2029-11-18 | J72: 0.9888435222 | L72: 2029-11-18 | M72: 0.9070837027 | O72: 2029-11-18 | P72: 0.9470817512 | R72: 2029-11-18 | S72: 0.9888435222 | U72: 2029-11-18 | V72: 0.9897034208 | X72: 2029-11-18 | Y72: 0.9078668662 | AA72: 2029-11-18 | AB72: 0.9478994485 | AD72: 2029-11-18 | AE72: 0.989697276
A73: 65 | B73: 2030-01-07 | C73: 8.767123288 | D73: 0.0014 | E73: 0.0114 | F73: 0.0064 | G73: 0.0014 | I73: 2030-01-07 | J73: 0.9878010454 | L73: 2030-01-07 | M73: 0.9048869995 | O73: 2030-01-07 | P73: 0.9454355208 | R73: 2030-01-07 | S73: 0.9878010454 | U73: =I73 -> 2030-01-07 | V73: =1/(1+(D73+BumpSize*0.0001))^C73 -> 0.9886747604 | X73: =L73 -> 2030-01-07 | Y73: =EXP(-($E73+BumpSize*0.0001)*$C73) -> 0.905680673 | AA73: =O73 -> 2030-01-07 | AB73: =EXP(-($F73+BumpSize*0.0001)*$C73) -> 0.9462647593 | AD73: =R73 -> 2030-01-07 | AE73: =EXP(-($G73+BumpSize*0.0001)*$C73) -> 0.9886674425
A74: 66 | B74: =B73+Periodicity -> 2030-02-26 | C74: =(B74-AsOfDate)/365 -> 8.904109589 | D74: 0.0015 | E74: =$D74+E$7 -> 0.0115 | F74: 0.0065 | G74: 0.0015 | I74: =I73+Periodicity -> 2030-02-26 | J74: =EXP(-$D74*$C74) -> 0.9867326334 | L74: =L73+Periodicity -> 2030-02-26 | M74: =EXP(-$E74*$C74) -> 0.9026708851 | O74: =O73+Periodicity -> 2030-02-26 | P74: =EXP(-$F74*$C74) -> 0.943766295 | R74: =R73+Periodicity -> 2030-02-26 | S74: =EXP(-$G74*$C74) -> 0.9867326334 | U74: 2030-02-26 | V74: 0.9876202322 | X74: 2030-02-26 | Y74: 0.9034749911 | AA74: 2030-02-26 | AB74: 0.9446070091 | AD74: 2030-02-26 | AE74: 0.9876116222
A75: 67 | B75: 2030-04-17 | C75: 9.04109589 | D75: =D74+0.0001 -> 0.0016 | E75: 0.0116 | F75: 0.0066 | G75: 0.0016 | I75: 2030-04-17 | J75: 0.9856383729 | L75: 2030-04-17 | M75: 0.9004355283 | O75: 2030-04-17 | P75: 0.9420742057 | R75: 2030-04-17 | S75: 0.9856383729 | U75: 2030-04-17 | V75: 0.9865399252 | X75: 2030-04-17 | Y75: 0.9012499889 | AA75: 2030-04-17 | AB75: 0.9429263292 | AD75: 2030-04-17 | AE75: 0.986529901
A76: 68 | B76: 2030-06-06 | C76: 9.178082192 | D76: 0.0017 | E76: 0.0117 | F76: 0.0067 | G76: 0.0017 | I76: 2030-06-06 | J76: 0.9845183524 | L76: 2030-06-06 | M76: 0.8981810991 | O76: 2030-06-06 | P76: 0.9403593865 | R76: 2030-06-06 | S76: 0.9845183524 | U76: 2030-06-06 | V76: 0.9854339307 | X76: 2030-06-06 | Y76: 0.8990058355 | AA76: 2030-06-06 | AB76: 0.9412228523 | AD76: 2030-06-06 | AE76: 0.9854223662
A77: 69 | B77: 2030-07-26 | C77: 9.315068493 | D77: 0.0018 | E77: 0.0118 | F77: 0.0068 | G77: 0.0018 | I77: 2030-07-26 | J77: 0.9833726626 | L77: 2030-07-26 | M77: 0.8959077685 | O77: 2030-07-26 | P77: 0.9386219728 | R77: 2030-07-26 | S77: 0.9833726626 | U77: 2030-07-26 | V77: 0.9843023416 | X77: 2030-07-26 | Y77: 0.8967427016 | AA77: 2030-07-26 | AB77: 0.9394967129 | AD77: 2030-07-26 | AE77: 0.9842891077
A78: 70 | B78: 2030-09-14 | C78: 9.452054795 | D78: 0.0019 | E78: 0.0119 | F78: 0.0069 | G78: 0.0019 | I78: 2030-09-14 | J78: 0.982201396 | L78: 2030-09-14 | M78: 0.8936157089 | O78: 2030-09-14 | P78: 0.9368621012 | R78: 2030-09-14 | S78: 0.982201396 | U78: 2030-09-14 | V78: 0.9831452531 | X78: 2030-09-14 | Y78: 0.8944607587 | AA78: 2030-09-14 | AB78: 0.9377480471 | AD78: 2030-09-14 | AE78: 0.983130217
A79: 71 | B79: 2030-11-03 | C79: 9.589041096 | D79: 0.002 | E79: 0.012 | F79: 0.007 | G79: 0.002 | I79: 2030-11-03 | J79: 0.9810046472 | L79: 2030-11-03 | M79: 0.8913050935 | O79: 2030-11-03 | P79: 0.9350799104 | R79: 2030-11-03 | S79: 0.9810046472 | U79: 2030-11-03 | V79: 0.9819627622 | X79: 2030-11-03 | Y79: 0.8921601795 | AA79: 2030-11-03 | AB79: 0.9359769924 | AD79: 2030-11-03 | AE79: 0.9819457878
A80: 72 | B80: 2030-12-23 | C80: 9.726027397 | D80: 0.0021 | E80: 0.0121 | F80: 0.0071 | G80: 0.0021 | I80: 2030-12-23 | J80: 0.9797825129 | L80: 2030-12-23 | M80: 0.8889760969 | O80: 2030-12-23 | P80: 0.9332755403 | R80: 2030-12-23 | S80: 0.9797825129 | U80: 2030-12-23 | V80: 0.9807549678 | X80: 2030-12-23 | Y80: 0.889841138 | AA80: 2030-12-23 | AB80: 0.9341836882 | AD80: 2030-12-23 | AE80: 0.9807359156
A81: =A80+1 -> 73 | B81: 2031-02-11 | C81: 9.863013699 | D81: 0.0022 | E81: 0.0122 | F81: 0.0072 | G81: 0.0022 | I81: 2031-02-11 | J81: 0.9785350916 | L81: 2031-02-11 | M81: 0.8866288944 | O81: 2031-02-11 | P81: 0.9314491325 | R81: 2031-02-11 | S81: 0.9785350916 | U81: 2031-02-11 | V81: 0.9795219708 | X81: 2031-02-11 | Y81: 0.8875038091 | AA81: 2031-02-11 | AB81: 0.9323682752 | AD81: 2031-02-11 | AE81: 0.9795006982
A82: 74 | B82: 2031-04-02 | C82: 10 | D82: 0.0023 | E82: 0.0123 | F82: 0.0073 | G82: 0.0023 | I82: 2031-04-02 | J82: 0.9772624838 | L82: 2031-04-02 | M82: 0.8842636626 | O82: 2031-04-02 | P82: 0.92960083 | R82: 2031-04-02 | S82: 0.9772624838 | U82: 2031-04-02 | V82: 0.9782638741 | X82: 2031-04-02 | Y82: 0.8851483685 | AA82: 2031-04-02 | AB82: 0.9305308958 | AD82: 2031-04-02 | AE82: 0.9782402351
A83: 75 | B83: 2031-05-22 | C83: 10.1369863 | D83: 0.0024 | E83: 0.0124 | F83: 0.0074 | G83: 0.0024 | I83: 2031-05-22 | J83: 0.9759647919 | L83: 2031-05-22 | M83: 0.881880579 | O83: 2031-05-22 | P83: 0.9277307776 | R83: 2031-05-22 | S83: 0.9759647919 | U83: 2031-05-22 | V83: 0.9769807823 | X83: 2031-05-22 | Y83: 0.8827749934 | AA83: 2031-05-22 | AB83: 0.9286716938 | AD83: 2031-05-22 | AE83: 0.9769546277
A84: 76 | B84: 2031-07-11 | C84: 10.2739726 | D84: 0.0025 | E84: 0.0125 | F84: 0.0075 | G84: 0.0025 | I84: 2031-07-11 | J84: 0.9746421203 | L84: 2031-07-11 | M84: 0.8794798221 | O84: 2031-07-11 | P84: 0.9258391213 | R84: 2031-07-11 | S84: 0.9746421203 | U84: 2031-07-11 | V84: 0.9756728022 | X84: 2031-07-11 | Y84: 0.8803838616 | AA84: 2031-07-11 | AB84: 0.9267908147 | AD84: 2031-07-11 | AE84: 0.9756439795
A85: 77 | B85: 2031-08-30 | C85: 10.4109589 | D85: 0.0026 | E85: 0.0126 | F85: 0.0076 | G85: 0.0026 | I85: 2031-08-30 | J85: 0.9732945752 | L85: 2031-08-30 | M85: 0.8770615714 | O85: 2031-08-30 | P85: 0.9239260087 | R85: 2031-08-30 | S85: 0.9732945752 | U85: 2031-08-30 | V85: 0.974340042 | X85: 2031-08-30 | Y85: 0.8779751521 | AA85: 2031-08-30 | AB85: 0.9248884052 | AD85: 2031-08-30 | AE85: 0.9743083959
A86: 78 | B86: 2031-10-19 | C86: 10.54794521 | D86: 0.0027 | E86: 0.0127 | F86: 0.0077 | G86: 0.0027 | I86: 2031-10-19 | J86: 0.9719222649 | L86: 2031-10-19 | M86: 0.8746260074 | O86: 2031-10-19 | P86: 0.9219915889 | R86: 2031-10-19 | S86: 0.9719222649 | U86: 2031-10-19 | V86: 0.9729826123 | X86: 2031-10-19 | Y86: 0.8755490448 | AA86: 2031-10-19 | AB86: 0.9229646137 | AD86: 2031-10-19 | AE86: 0.9729479841
A87: 79 | B87: 2031-12-08 | C87: 10.68493151 | D87: 0.0028 | E87: 0.0128 | F87: 0.0078 | G87: 0.0028 | I87: 2031-12-08 | J87: 0.9705252995 | L87: 2031-12-08 | M87: 0.8721733113 | O87: 2031-12-08 | P87: 0.9200360124 | R87: 2031-12-08 | S87: 0.9705252995 | U87: 2031-12-08 | V87: 0.9716006251 | X87: 2031-12-08 | Y87: 0.8731057206 | AA87: 2031-12-08 | AB87: 0.92101959 | AD87: 2031-12-08 | AE87: 0.9715628533
A88: 80 | B88: 2032-01-27 | C88: 10.82191781 | D88: 0.0029 | E88: 0.0129 | F88: 0.0079 | G88: 0.0029 | I88: 2032-01-27 | J88: 0.9691037907 | L88: 2032-01-27 | M88: 0.8697036655 | O88: 2032-01-27 | P88: 0.9180594311 | R88: 2032-01-27 | S88: 0.9691037907 | U88: 2032-01-27 | V88: 0.9701941945 | X88: 2032-01-27 | Y88: 0.8706453611 | AA88: 2032-01-27 | AB88: 0.9190534853 | AD88: 2032-01-27 | AE88: 0.9701531146
A89: 81 | B89: 2032-03-17 | C89: 10.95890411 | D89: 0.003 | E89: 0.013 | F89: 0.008 | G89: 0.003 | I89: 2032-03-17 | J89: 0.9676578525 | L89: 2032-03-17 | M89: 0.867217253 | O89: 2032-03-17 | P89: 0.9160619983 | R89: 2032-03-17 | S89: 0.9676578525 | U89: 2032-03-17 | V89: 0.9687634364 | X89: 2032-03-17 | Y89: 0.868168149 | AA89: 2032-03-17 | AB89: 0.9170664521 | AD89: 2032-03-17 | AE89: 0.9687188808
A90: 82 | B90: 2032-05-06 | C90: 11.09589041 | D90: 0.0031 | E90: 0.0131 | F90: 0.0081 | G90: 0.0031 | I90: 2032-05-06 | J90: 0.9661876004 | L90: 2032-05-06 | M90: 0.8647142578 | O90: 2032-05-06 | P90: 0.9140438687 | R90: 2032-05-06 | S90: 0.9661876004 | U90: 2032-05-06 | V90: 0.9673084682 | X90: 2032-05-06 | Y90: 0.8656742678 | AA90: 2032-05-06 | AB90: 0.9150586446 | AD90: 2032-05-06 | AE90: 0.9672602666
A91: 83 | B91: 2032-06-25 | C91: 11.23287671 | D91: 0.0032 | E91: 0.0132 | F91: 0.0082 | G91: 0.0032 | I91: 2032-06-25 | J91: 0.9646931519 | L91: 2032-06-25 | M91: 0.8621948648 | O91: 2032-06-25 | P91: 0.9120051983 | R91: 2032-06-25 | S91: 0.9646931519 | U91: 2032-06-25 | V91: 0.9658294095 | X91: 2032-06-25 | Y91: 0.8631639018 | AA91: 2032-06-25 | AB91: 0.9130302181 | AD91: 2032-06-25 | AE91: 0.9657773887
A92: 84 | B92: 2032-08-14 | C92: 11.36986301 | D92: 0.0033 | E92: 0.0133 | F92: 0.0083 | G92: 0.0033 | I92: 2032-08-14 | J92: 0.9631746263 | L92: 2032-08-14 | M92: 0.8596592595 | O92: 2032-08-14 | P92: 0.9099461446 | R92: 2032-08-14 | S92: 0.9631746263 | U92: 2032-08-14 | V92: 0.9643263813 | X92: 2032-08-14 | Y92: 0.8606372362 | AA92: 2032-08-14 | AB92: 0.9109813293 | AD92: 2032-08-14 | AE92: 0.9642703654
A93: 85 | B93: 2032-10-03 | C93: 11.50684932 | D93: 0.0034 | E93: 0.0134 | F93: 0.0084 | G93: 0.0034 | I93: 2032-10-03 | J93: 0.9616321445 | L93: 2032-10-03 | M93: 0.8571076284 | O93: 2032-10-03 | P93: 0.9078668662 | R93: 2032-10-03 | S93: 0.9616321445 | U93: 2032-10-03 | V93: 0.9627995067 | X93: 2032-10-03 | Y93: 0.8580944569 | AA93: 2032-10-03 | AB93: 0.9089121362 | AD93: 2032-10-03 | AE93: 0.9627393169
A94: 86 | B94: 2032-11-22 | C94: 11.64383562 | D94: 0.0035 | E94: 0.0135 | F94: 0.0085 | G94: 0.0035 | I94: 2032-11-22 | J94: 0.9600658293 | L94: 2032-11-22 | M94: 0.8545401587 | O94: 2032-11-22 | P94: 0.9057675232 | R94: 2032-11-22 | S94: 0.9600658293 | U94: 2032-11-22 | V94: 0.9612489102 | X94: 2032-11-22 | Y94: 0.8555357507 | AA94: 2032-11-22 | AB94: 0.9068227983 | AD94: 2032-11-22 | AE94: 0.9611843653
A95: 87 | B95: 2033-01-11 | C95: 11.78082192 | D95: 0.0036 | E95: 0.0136 | F95: 0.0086 | G95: 0.0036 | I95: 2033-01-11 | J95: 0.9584758055 | L95: 2033-01-11 | M95: 0.8519570382 | O95: 2033-01-11 | P95: 0.9036482769 | R95: 2033-01-11 | S95: 0.9584758055 | U95: 2033-01-11 | V95: 0.9596747182 | X95: 2033-01-11 | Y95: 0.852961305 | AA95: 2033-01-11 | AB95: 0.9047134762 | AD95: 2033-01-11 | AE95: 0.9596056341
A96: 88 | B96: 2033-03-02 | C96: 11.91780822 | D96: 0.0037 | E96: 0.0137 | F96: 0.0087 | G96: 0.0037 | I96: 2033-03-02 | J96: 0.9568621992 | L96: 2033-03-02 | M96: 0.8493584556 | O96: 2033-03-02 | P96: 0.9015092899 | R96: 2033-03-02 | S96: 0.9568621992 | U96: 2033-03-02 | V96: 0.9580770588 | X96: 2033-03-02 | Y96: 0.8503713081 | AA96: 2033-03-02 | AB96: 0.9025843318 | AD96: 2033-03-02 | AE96: 0.958003249
A97: 89 | B97: 2033-04-21 | C97: 12.05479452 | D97: 0.0038 | E97: 0.0138 | F97: 0.0088 | G97: 0.0038 | I97: 2033-04-21 | J97: 0.9552251385 | L97: 2033-04-21 | M97: 0.8467446002 | O97: 2033-04-21 | P97: 0.8993507258 | R97: 2033-04-21 | S97: 0.9552251385 | U97: 2033-04-21 | V97: 0.9564560618 | X97: 2033-04-21 | Y97: 0.8477659489 | AA97: 2033-04-21 | AB97: 0.9004355283 | AD97: 2033-04-21 | AE97: 0.9563773371
A98: 90 | B98: 2033-06-10 | C98: 12.19178082 | D98: 0.0039 | E98: 0.0139 | F98: 0.0089 | G98: 0.0039 | I98: 2033-06-10 | J98: 0.9535647532 | L98: 2033-06-10 | M98: 0.8441156621 | O98: 2033-06-10 | P98: 0.8971727498 | R98: 2033-06-10 | S98: 0.9535647532 | U98: 2033-06-10 | V98: 0.9548118584 | X98: 2033-06-10 | Y98: 0.845145417 | AA98: 2033-06-10 | AB98: 0.8982672302 | AD98: 2033-06-10 | AE98: 0.9547280274
A99: 91 | B99: 2033-07-30 | C99: 12.32876712 | D99: 0.004 | E99: 0.014 | F99: 0.009 | G99: 0.004 | I99: 2033-07-30 | J99: 0.9518811747 | L99: 2033-07-30 | M99: 0.8414718318 | O99: 2033-07-30 | P99: 0.894975528 | R99: 2033-07-30 | S99: 0.9518811747 | U99: 2033-07-30 | V99: 0.9531445818 | X99: 2033-07-30 | Y99: 0.8425099026 | AA99: 2033-07-30 | AB99: 0.8960796029 | AD99: 2033-07-30 | AE99: 0.9530554505
A100: 92 | B100: 2033-09-18 | C100: 12.46575342 | D100: 0.0041 | E100: 0.0141 | F100: 0.0091 | G100: 0.0041 | I100: 2033-09-18 | J100: 0.9501745361 | L100: 2033-09-18 | M100: 0.8388133007 | O100: 2033-09-18 | P100: 0.8927592278 | R100: 2033-09-18 | S100: 0.9501745361 | U100: 2033-09-18 | V100: 0.9514543666 | X100: 2033-09-18 | Y100: 0.8398595967 | AA100: 2033-09-18 | AB100: 0.8938728134 | AD100: 2033-09-18 | AE100: 0.9513597388
A101: 93 | B101: 2033-11-07 | C101: 12.60273973 | D101: 0.0042 | E101: 0.0142 | F101: 0.0092 | G101: 0.0042 | I101: 2033-11-07 | J101: 0.9484449722 | L101: 2033-11-07 | M101: 0.8361402606 | O101: 2033-11-07 | P101: 0.8905240178 | R101: 2033-11-07 | S101: 0.9484449722 | U101: 2033-11-07 | V101: 0.9497413492 | X101: 2033-11-07 | Y101: 0.8371946907 | AA101: 2033-11-07 | AB101: 0.8916470295 | AD101: 2033-11-07 | AE101: 0.9496410263
A102: =A101+1 -> 94 | B102: 2033-12-27 | C102: 12.73972603 | D102: 0.0043 | E102: 0.0143 | F102: 0.0093 | G102: 0.0043 | I102: 2033-12-27 | J102: 0.9466926195 | L102: 2033-12-27 | M102: 0.8334529041 | O102: 2033-12-27 | P102: 0.8882700676 | R102: 2033-12-27 | S102: 0.9466926195 | U102: 2033-12-27 | V102: 0.9480056673 | X102: 2033-12-27 | Y102: 0.8345153769 | AA102: 2033-12-27 | AB102: 0.8894024205 | AD102: 2033-12-27 | AE102: 0.9478994485
A103: 95 | B103: 2034-02-15 | C103: 12.87671233 | D103: 0.0044 | E103: 0.0144 | F103: 0.0094 | G103: 0.0044 | I103: 2034-02-15 | J103: 0.9449176159 | L103: 2034-02-15 | M103: 0.8307514241 | O103: 2034-02-15 | P103: 0.885997548 | R103: 2034-02-15 | S103: 0.9449176159 | U103: 2034-02-15 | V103: 0.9462474605 | X103: 2034-02-15 | Y103: 0.8318218478 | AA103: 2034-02-15 | AB103: 0.8871391564 | AD103: 2034-02-15 | AE103: 0.9461351428
A104: 96 | B104: 2034-04-06 | C104: 13.01369863 | D104: 0.0045 | E104: 0.0145 | F104: 0.0095 | G104: 0.0045 | I104: 2034-04-06 | J104: 0.9431201011 | L104: 2034-04-06 | M104: 0.8280360142 | O104: 2034-04-06 | P104: 0.8837066308 | R104: 2034-04-06 | S104: 0.9431201011 | U104: 2034-04-06 | V104: 0.9444668698 | X104: 2034-04-06 | Y104: 0.8291142968 | AA104: 2034-04-06 | AB104: 0.8848574087 | AD104: 2034-04-06 | AE104: 0.9443482481
A105: 97 | B105: 2034-05-26 | C105: 13.15068493 | D105: 0.0046 | E105: 0.0146 | F105: 0.0096 | G105: 0.0046 | I105: 2034-05-26 | J105: 0.9413002163 | L105: 2034-05-26 | M105: 0.8253068685 | O105: 2034-05-26 | P105: 0.8813974891 | R105: 2034-05-26 | S105: 0.9413002163 | U105: 2034-05-26 | V105: 0.9426640376 | X105: 2034-05-26 | Y105: 0.8263929175 | AA105: 2034-05-26 | AB105: 0.8825573496 | AD105: 2034-05-26 | AE105: 0.9425389048
A106: 98 | B106: 2034-07-15 | C106: =(B106-AsOfDate)/365 -> 13.28767123 | D106: 0.0047 | E106: 0.0147 | F106: 0.0097 | G106: 0.0047 | I106: 2034-07-15 | J106: 0.9394581042 | L106: 2034-07-15 | M106: 0.8225641815 | O106: 2034-07-15 | P106: 0.8790702967 | R106: 2034-07-15 | S106: 0.9394581042 | U106: 2034-07-15 | V106: 0.9408391081 | X106: 2034-07-15 | Y106: 0.8236579043 | AA106: 2034-07-15 | AB106: 0.8802391528 | AD106: 2034-07-15 | AE106: 0.940707255
A107: 99 | B107: 2034-09-03 | C107: 13.42465753 | D107: 0.0048 | E107: 0.0148 | F107: 0.0098 | G107: 0.0048 | I107: 2034-09-03 | J107: 0.9375939094 | L107: 2034-09-03 | M107: 0.8198081484 | O107: 2034-09-03 | P107: 0.8767252288 | R107: 2034-09-03 | S107: 0.9375939094 | U107: 2034-09-03 | V107: 0.9389922267 | X107: 2034-09-03 | Y107: 0.8209094518 | AA107: 2034-09-03 | AB107: 0.8779029927 | AD107: 2034-09-03 | AE107: 0.9388534423
A108: =A107+1 -> 100 | B108: 2034-10-23 | C108: 13.56164384 | D108: 0.0049 | E108: 0.0149 | F108: 0.0099 | G108: 0.0049 | I108: 2034-10-23 | J108: 0.9357077775 | L108: 2034-10-23 | M108: 0.8170389645 | O108: 2034-10-23 | P108: 0.8743624612 | R108: 2034-10-23 | S108: 0.9357077775 | U108: 2034-10-23 | V108: 0.9371235407 | X108: 2034-10-23 | Y108: 0.8181477553 | AA108: 2034-10-23 | AB108: 0.8755490448 | AD108: 2034-10-23 | AE108: 0.9369776119

Sheet Libor Rates
B2: Benchmark Libor Curves | F2: Libor Data for Pricing & Risk
B4: Bump Size | C4: -1 | D4: Bps
B6: EUR | F6: USD | J6: GBP | N6: JPY
A7: Row | B7: Date | C7: EUR6ML | D7: Bumped | F7: Date | G7: USD3ML | H7: Bumped | J7: Date | K7: GBP6ML | L7: Bumped | N7: Date | O7: JPY6ML | P7: Bumped
A8: 1 | B8: =AsOfDate -> 2021-04-04 | C8: 0.0004873311277 | D8: =C8+(BumpSizeLiborRates*0.0001) -> 0.0003873311277 | F8: =AsOfDate -> 2021-04-04 | G8: 0.0028 | H8: =G8+(BumpSizeLiborRates*0.0001) -> 0.0027 | J8: =AsOfDate -> 2021-04-04 | K8: 0.0075 | L8: =K8+(BumpSizeLiborRates*0.0001) -> 0.0074 | N8: =AsOfDate -> 2021-04-04 | O8: 0.005 | P8: =O8+(BumpSizeLiborRates*0.0001) -> 0.0049
A9: =A8+1 -> 2 | B9: =B8+Periodicity -> 2021-05-24 | C9: =C8+0.02% -> 0.0006873311277 | D9: 0.0005873311277 | F9: =F8+Periodicity -> 2021-05-24 | G9: =G8+0.0195% -> 0.002995 | H9: 0.002895 | J9: =J8+Periodicity -> 2021-05-24 | K9: =K8-0.004% -> 0.00746 | L9: 0.00736 | N9: =N8+Periodicity -> 2021-05-24 | O9: 0.005 | P9: 0.0049
A10: =A9+1 -> 3 | B10: 2021-07-13 | C10: =C9+0.02% -> 0.0008873311277 | D10: 0.0007873311277 | F10: 2021-07-13 | G10: =G9+0.0195% -> 0.00319 | H10: 0.00309 | J10: 2021-07-13 | K10: =K9-0.004% -> 0.00742 | L10: 0.00732 | N10: 2021-07-13 | O10: 0.005 | P10: 0.0049
A11: 4 | B11: 2021-09-01 | C11: 0.001087331128 | D11: 0.0009873311277 | F11: 2021-09-01 | G11: 0.003385 | H11: 0.003285 | J11: 2021-09-01 | K11: 0.00738 | L11: 0.00728 | N11: 2021-09-01 | O11: 0.005 | P11: 0.0049
A12: 5 | B12: 2021-10-21 | C12: 0.001287331128 | D12: 0.001187331128 | F12: 2021-10-21 | G12: 0.00358 | H12: 0.00348 | J12: 2021-10-21 | K12: 0.00734 | L12: 0.00724 | N12: 2021-10-21 | O12: 0.005 | P12: 0.0049
A13: 6 | B13: 2021-12-10 | C13: 0.001487331128 | D13: 0.001387331128 | F13: 2021-12-10 | G13: 0.003775 | H13: 0.003675 | J13: 2021-12-10 | K13: 0.0073 | L13: 0.0072 | N13: 2021-12-10 | O13: 0.005 | P13: 0.0049
A14: 7 | B14: 2022-01-29 | C14: 0.001687331128 | D14: 0.001587331128 | F14: 2022-01-29 | G14: 0.00397 | H14: 0.00387 | J14: 2022-01-29 | K14: 0.00726 | L14: 0.00716 | N14: 2022-01-29 | O14: 0.005 | P14: 0.0049
A15: 8 | B15: 2022-03-20 | C15: 0.001887331128 | D15: 0.001787331128 | F15: 2022-03-20 | G15: 0.004165 | H15: 0.004065 | J15: 2022-03-20 | K15: 0.00722 | L15: 0.00712 | N15: 2022-03-20 | O15: 0.005 | P15: 0.0049
A16: 9 | B16: 2022-05-09 | C16: 0.002087331128 | D16: 0.001987331128 | F16: 2022-05-09 | G16: 0.00436 | H16: 0.00426 | J16: 2022-05-09 | K16: 0.00718 | L16: 0.00708 | N16: 2022-05-09 | O16: 0.005 | P16: 0.0049
A17: 10 | B17: 2022-06-28 | C17: 0.002287331128 | D17: 0.002187331128 | F17: 2022-06-28 | G17: 0.004555 | H17: 0.004455 | J17: 2022-06-28 | K17: 0.00714 | L17: 0.00704 | N17: 2022-06-28 | O17: 0.005 | P17: 0.0049
A18: 11 | B18: 2022-08-17 | C18: 0.002487331128 | D18: 0.002387331128 | F18: 2022-08-17 | G18: 0.00475 | H18: 0.00465 | J18: 2022-08-17 | K18: 0.0071 | L18: 0.007 | N18: 2022-08-17 | O18: 0.005 | P18: 0.0049
A19: 12 | B19: 2022-10-06 | C19: 0.002687331128 | D19: 0.002587331128 | F19: 2022-10-06 | G19: 0.004945 | H19: 0.004845 | J19: 2022-10-06 | K19: 0.00706 | L19: 0.00696 | N19: 2022-10-06 | O19: 0.005 | P19: 0.0049
A20: 13 | B20: 2022-11-25 | C20: 0.002887331128 | D20: 0.002787331128 | F20: 2022-11-25 | G20: 0.00514 | H20: 0.00504 | J20: 2022-11-25 | K20: 0.00702 | L20: 0.00692 | N20: 2022-11-25 | O20: 0.005 | P20: 0.0049
A21: 14 | B21: 2023-01-14 | C21: 0.003087331128 | D21: 0.002987331128 | F21: 2023-01-14 | G21: 0.005335 | H21: 0.005235 | J21: 2023-01-14 | K21: 0.00698 | L21: 0.00688 | N21: 2023-01-14 | O21: 0.005 | P21: 0.0049
A22: 15 | B22: 2023-03-05 | C22: 0.003287331128 | D22: 0.003187331128 | F22: 2023-03-05 | G22: 0.00553 | H22: 0.00543 | J22: 2023-03-05 | K22: 0.00694 | L22: 0.00684 | N22: 2023-03-05 | O22: 0.005 | P22: 0.0049
A23: 16 | B23: 2023-04-24 | C23: 0.003487331128 | D23: 0.003387331128 | F23: 2023-04-24 | G23: 0.005725 | H23: 0.005625 | J23: 2023-04-24 | K23: 0.0069 | L23: 0.0068 | N23: 2023-04-24 | O23: 0.005 | P23: 0.0049
A24: 17 | B24: 2023-06-13 | C24: 0.003687331128 | D24: 0.003587331128 | F24: 2023-06-13 | G24: 0.00592 | H24: 0.00582 | J24: 2023-06-13 | K24: 0.00686 | L24: 0.00676 | N24: 2023-06-13 | O24: 0.005 | P24: 0.0049
A25: 18 | B25: 2023-08-02 | C25: 0.003887331128 | D25: 0.003787331128 | F25: 2023-08-02 | G25: 0.006115 | H25: 0.006015 | J25: 2023-08-02 | K25: 0.00682 | L25: 0.00672 | N25: 2023-08-02 | O25: 0.005 | P25: 0.0049
A26: 19 | B26: 2023-09-21 | C26: 0.004087331128 | D26: 0.003987331128 | F26: 2023-09-21 | G26: 0.00631 | H26: 0.00621 | J26: 2023-09-21 | K26: 0.00678 | L26: 0.00668 | N26: 2023-09-21 | O26: 0.005 | P26: 0.0049
A27: 20 | B27: 2023-11-10 | C27: 0.004287331128 | D27: 0.004187331128 | F27: 2023-11-10 | G27: 0.006505 | H27: 0.006405 | J27: 2023-11-10 | K27: 0.00674 | L27: 0.00664 | N27: 2023-11-10 | O27: 0.005 | P27: 0.0049
A28: 21 | B28: 2023-12-30 | C28: 0.004487331128 | D28: 0.004387331128 | F28: 2023-12-30 | G28: 0.0067 | H28: 0.0066 | J28: 2023-12-30 | K28: 0.0067 | L28: 0.0066 | N28: 2023-12-30 | O28: 0.005 | P28: 0.0049
A29: 22 | B29: 2024-02-18 | C29: 0.004687331128 | D29: 0.004587331128 | F29: 2024-02-18 | G29: 0.006895 | H29: 0.006795 | J29: 2024-02-18 | K29: 0.00666 | L29: 0.00656 | N29: 2024-02-18 | O29: 0.005 | P29: 0.0049
A30: 23 | B30: 2024-04-08 | C30: 0.004887331128 | D30: 0.004787331128 | F30: 2024-04-08 | G30: 0.00709 | H30: 0.00699 | J30: 2024-04-08 | K30: 0.00662 | L30: 0.00652 | N30: 2024-04-08 | O30: 0.005 | P30: 0.0049
A31: 24 | B31: 2024-05-28 | C31: 0.005087331128 | D31: 0.004987331128 | F31: 2024-05-28 | G31: 0.007285 | H31: 0.007185 | J31: 2024-05-28 | K31: 0.00658 | L31: 0.00648 | N31: 2024-05-28 | O31: 0.005 | P31: 0.0049
A32: 25 | B32: 2024-07-17 | C32: 0.005287331128 | D32: 0.005187331128 | F32: 2024-07-17 | G32: 0.00748 | H32: 0.00738 | J32: 2024-07-17 | K32: 0.00654 | L32: 0.00644 | N32: 2024-07-17 | O32: 0.005 | P32: 0.0049
A33: 26 | B33: 2024-09-05 | C33: 0.005487331128 | D33: 0.005387331128 | F33: 2024-09-05 | G33: 0.007675 | H33: 0.007575 | J33: 2024-09-05 | K33: 0.0065 | L33: 0.0064 | N33: 2024-09-05 | O33: 0.005 | P33: 0.0049
A34: 27 | B34: 2024-10-25 | C34: 0.005687331128 | D34: 0.005587331128 | F34: 2024-10-25 | G34: 0.00787 | H34: 0.00777 | J34: 2024-10-25 | K34: 0.00646 | L34: 0.00636 | N34: 2024-10-25 | O34: 0.005 | P34: 0.0049
A35: 28 | B35: 2024-12-14 | C35: 0.005887331128 | D35: 0.005787331128 | F35: 2024-12-14 | G35: 0.008065 | H35: 0.007965 | J35: 2024-12-14 | K35: 0.00642 | L35: 0.00632 | N35: 2024-12-14 | O35: 0.005 | P35: 0.0049
A36: 29 | B36: 2025-02-02 | C36: 0.006087331128 | D36: 0.005987331128 | F36: 2025-02-02 | G36: 0.00826 | H36: 0.00816 | J36: 2025-02-02 | K36: 0.00638 | L36: 0.00628 | N36: 2025-02-02 | O36: 0.005 | P36: 0.0049
A37: 30 | B37: 2025-03-24 | C37: 0.006287331128 | D37: 0.006187331128 | F37: 2025-03-24 | G37: 0.008455 | H37: 0.008355 | J37: 2025-03-24 | K37: 0.00634 | L37: 0.00624 | N37: 2025-03-24 | O37: 0.005 | P37: 0.0049
A38: 31 | B38: 2025-05-13 | C38: 0.006487331128 | D38: 0.006387331128 | F38: 2025-05-13 | G38: 0.00865 | H38: 0.00855 | J38: 2025-05-13 | K38: 0.0063 | L38: 0.0062 | N38: 2025-05-13 | O38: 0.005 | P38: 0.0049
A39: 32 | B39: 2025-07-02 | C39: 0.006687331128 | D39: 0.006587331128 | F39: 2025-07-02 | G39: 0.008845 | H39: 0.008745 | J39: 2025-07-02 | K39: 0.00626 | L39: 0.00616 | N39: 2025-07-02 | O39: 0.005 | P39: 0.0049
A40: 33 | B40: 2025-08-21 | C40: 0.006887331128 | D40: =C40+(BumpSizeLiborRates*0.0001) -> 0.006787331128 | F40: 2025-08-21 | G40: 0.00904 | H40: =G40+(BumpSizeLiborRates*0.0001) -> 0.00894 | J40: 2025-08-21 | K40: 0.00622 | L40: =K40+(BumpSizeLiborRates*0.0001) -> 0.00612 | N40: 2025-08-21 | O40: 0.005 | P40: =O40+(BumpSizeLiborRates*0.0001) -> 0.0049
A41: 34 | B41: =B40+Periodicity -> 2025-10-10 | C41: 0.007087331128 | D41: 0.006987331128 | F41: =F40+Periodicity -> 2025-10-10 | G41: 0.009235 | H41: 0.009135 | J41: =J40+Periodicity -> 2025-10-10 | K41: 0.00618 | L41: 0.00608 | N41: =N40+Periodicity -> 2025-10-10 | O41: 0.005 | P41: 0.0049
A42: 35 | B42: 2025-11-29 | C42: 0.007287331128 | D42: 0.007187331128 | F42: 2025-11-29 | G42: 0.00943 | H42: 0.00933 | J42: 2025-11-29 | K42: 0.00614 | L42: 0.00604 | N42: 2025-11-29 | O42: 0.005 | P42: 0.0049
A43: 36 | B43: 2026-01-18 | C43: 0.007487331128 | D43: 0.007387331128 | F43: 2026-01-18 | G43: 0.009625 | H43: 0.009525 | J43: 2026-01-18 | K43: 0.0061 | L43: 0.006 | N43: 2026-01-18 | O43: 0.005 | P43: 0.0049
A44: 37 | B44: 2026-03-09 | C44: 0.007687331128 | D44: 0.007587331128 | F44: 2026-03-09 | G44: 0.00982 | H44: 0.00972 | J44: 2026-03-09 | K44: 0.00606 | L44: 0.00596 | N44: 2026-03-09 | O44: 0.005 | P44: 0.0049
A45: 38 | B45: 2026-04-28 | C45: 0.007887331128 | D45: 0.007787331128 | F45: 2026-04-28 | G45: 0.010015 | H45: 0.009915 | J45: 2026-04-28 | K45: 0.00602 | L45: 0.00592 | N45: 2026-04-28 | O45: 0.005 | P45: 0.0049
A46: 39 | B46: 2026-06-17 | C46: 0.008087331128 | D46: 0.007987331128 | F46: 2026-06-17 | G46: 0.01021 | H46: 0.01011 | J46: 2026-06-17 | K46: 0.00598 | L46: 0.00588 | N46: 2026-06-17 | O46: 0.005 | P46: 0.0049
A47: 40 | B47: 2026-08-06 | C47: 0.008287331128 | D47: 0.008187331128 | F47: 2026-08-06 | G47: 0.010405 | H47: 0.010305 | J47: 2026-08-06 | K47: 0.00594 | L47: 0.00584 | N47: 2026-08-06 | O47: 0.005 | P47: 0.0049
A48: 41 | B48: 2026-09-25 | C48: 0.008487331128 | D48: 0.008387331128 | F48: 2026-09-25 | G48: 0.0106 | H48: 0.0105 | J48: 2026-09-25 | K48: 0.0059 | L48: 0.0058 | N48: 2026-09-25 | O48: 0.005 | P48: 0.0049
A49: 42 | B49: 2026-11-14 | C49: 0.008687331128 | D49: 0.008587331128 | F49: 2026-11-14 | G49: 0.010795 | H49: 0.010695 | J49: 2026-11-14 | K49: 0.00586 | L49: 0.00576 | N49: 2026-11-14 | O49: 0.005 | P49: 0.0049
A50: 43 | B50: 2027-01-03 | C50: 0.008887331128 | D50: 0.008787331128 | F50: 2027-01-03 | G50: 0.01099 | H50: 0.01089 | J50: 2027-01-03 | K50: 0.00582 | L50: 0.00572 | N50: 2027-01-03 | O50: 0.005 | P50: 0.0049
A51: 44 | B51: 2027-02-22 | C51: 0.009087331128 | D51: 0.008987331128 | F51: 2027-02-22 | G51: 0.011185 | H51: 0.011085 | J51: 2027-02-22 | K51: 0.00578 | L51: 0.00568 | N51: 2027-02-22 | O51: 0.005 | P51: 0.0049
A52: 45 | B52: 2027-04-13 | C52: 0.009287331128 | D52: 0.009187331128 | F52: 2027-04-13 | G52: 0.01138 | H52: 0.01128 | J52: 2027-04-13 | K52: 0.00574 | L52: 0.00564 | N52: 2027-04-13 | O52: 0.005 | P52: 0.0049
A53: 46 | B53: 2027-06-02 | C53: 0.009487331128 | D53: 0.009387331128 | F53: 2027-06-02 | G53: 0.011575 | H53: 0.011475 | J53: 2027-06-02 | K53: 0.0057 | L53: 0.0056 | N53: 2027-06-02 | O53: 0.005 | P53: 0.0049
A54: 47 | B54: 2027-07-22 | C54: 0.009687331128 | D54: 0.009587331128 | F54: 2027-07-22 | G54: 0.01177 | H54: 0.01167 | J54: 2027-07-22 | K54: 0.00566 | L54: 0.00556 | N54: 2027-07-22 | O54: 0.005 | P54: 0.0049
A55: 48 | B55: 2027-09-10 | C55: 0.009887331128 | D55: 0.009787331128 | F55: 2027-09-10 | G55: 0.011965 | H55: 0.011865 | J55: 2027-09-10 | K55: 0.00562 | L55: 0.00552 | N55: 2027-09-10 | O55: 0.005 | P55: 0.0049
A56: 49 | B56: 2027-10-30 | C56: 0.01008733113 | D56: 0.009987331128 | F56: 2027-10-30 | G56: 0.01216 | H56: 0.01206 | J56: 2027-10-30 | K56: 0.00558 | L56: 0.00548 | N56: 2027-10-30 | O56: 0.005 | P56: 0.0049
A57: 50 | B57: 2027-12-19 | C57: 0.01028733113 | D57: 0.01018733113 | F57: 2027-12-19 | G57: 0.012355 | H57: 0.012255 | J57: 2027-12-19 | K57: 0.00554 | L57: 0.00544 | N57: 2027-12-19 | O57: 0.005 | P57: 0.0049
A58: 51 | B58: 2028-02-07 | C58: 0.01048733113 | D58: 0.01038733113 | F58: 2028-02-07 | G58: 0.01255 | H58: 0.01245 | J58: 2028-02-07 | K58: 0.0055 | L58: 0.0054 | N58: 2028-02-07 | O58: 0.005 | P58: 0.0049
A59: 52 | B59: 2028-03-28 | C59: 0.01068733113 | D59: 0.01058733113 | F59: 2028-03-28 | G59: 0.012745 | H59: 0.012645 | J59: 2028-03-28 | K59: 0.00546 | L59: 0.00536 | N59: 2028-03-28 | O59: 0.005 | P59: 0.0049
A60: 53 | B60: 2028-05-17 | C60: 0.01088733113 | D60: 0.01078733113 | F60: 2028-05-17 | G60: 0.01294 | H60: 0.01284 | J60: 2028-05-17 | K60: 0.00542 | L60: 0.00532 | N60: 2028-05-17 | O60: 0.005 | P60: 0.0049
A61: 54 | B61: 2028-07-06 | C61: 0.01108733113 | D61: 0.01098733113 | F61: 2028-07-06 | G61: 0.013135 | H61: 0.013035 | J61: 2028-07-06 | K61: 0.00538 | L61: 0.00528 | N61: 2028-07-06 | O61: 0.005 | P61: 0.0049
A62: 55 | B62: 2028-08-25 | C62: 0.01128733113 | D62: 0.01118733113 | F62: 2028-08-25 | G62: 0.01333 | H62: 0.01323 | J62: 2028-08-25 | K62: 0.00534 | L62: 0.00524 | N62: 2028-08-25 | O62: 0.005 | P62: 0.0049
A63: 56 | B63: 2028-10-14 | C63: 0.01148733113 | D63: 0.01138733113 | F63: 2028-10-14 | G63: 0.013525 | H63: 0.013425 | J63: 2028-10-14 | K63: 0.0053 | L63: 0.0052 | N63: 2028-10-14 | O63: 0.005 | P63: 0.0049
A64: 57 | B64: 2028-12-03 | C64: 0.01168733113 | D64: 0.01158733113 | F64: 2028-12-03 | G64: 0.01372 | H64: 0.01362 | J64: 2028-12-03 | K64: 0.00526 | L64: 0.00516 | N64: 2028-12-03 | O64: 0.005 | P64: 0.0049
A65: 58 | B65: 2029-01-22 | C65: 0.01188733113 | D65: 0.01178733113 | F65: 2029-01-22 | G65: 0.013915 | H65: 0.013815 | J65: 2029-01-22 | K65: 0.00522 | L65: 0.00512 | N65: 2029-01-22 | O65: 0.005 | P65: 0.0049
A66: 59 | B66: 2029-03-13 | C66: 0.01208733113 | D66: 0.01198733113 | F66: 2029-03-13 | G66: 0.01411 | H66: 0.01401 | J66: 2029-03-13 | K66: 0.00518 | L66: 0.00508 | N66: 2029-03-13 | O66: 0.005 | P66: 0.0049
A67: 60 | B67: 2029-05-02 | C67: 0.01228733113 | D67: 0.01218733113 | F67: 2029-05-02 | G67: 0.014305 | H67: 0.014205 | J67: 2029-05-02 | K67: 0.00514 | L67: 0.00504 | N67: 2029-05-02 | O67: 0.005 | P67: 0.0049
A68: 61 | B68: 2029-06-21 | C68: 0.01248733113 | D68: 0.01238733113 | F68: 2029-06-21 | G68: 0.0145 | H68: 0.0144 | J68: 2029-06-21 | K68: 0.0175 | L68: 0.0174 | M68: x | N68: 2029-06-21 | O68: 0.005 | P68: 0.0049
A69: 62 | B69: 2029-08-10 | C69: 0.01268733113 | D69: 0.01258733113 | F69: 2029-08-10 | G69: 0.014695 | H69: 0.014595 | J69: 2029-08-10 | K69: =K68+0.008% -> 0.01758 | L69: 0.01748 | N69: 2029-08-10 | O69: 0.005 | P69: 0.0049
A70: 63 | B70: 2029-09-29 | C70: 0.01288733113 | D70: 0.01278733113 | F70: 2029-09-29 | G70: 0.01489 | H70: 0.01479 | J70: 2029-09-29 | K70: =K69+0.008% -> 0.01766 | L70: 0.01756 | N70: 2029-09-29 | O70: 0.005 | P70: 0.0049
A71: 64 | B71: 2029-11-18 | C71: 0.01308733113 | D71: 0.01298733113 | F71: 2029-11-18 | G71: 0.015085 | H71: 0.014985 | J71: 2029-11-18 | K71: 0.01774 | L71: 0.01764 | N71: 2029-11-18 | O71: 0.005 | P71: 0.0049
A72: 65 | B72: 2030-01-07 | C72: 0.01328733113 | D72: =C72+(BumpSizeLiborRates*0.0001) -> 0.01318733113 | F72: 2030-01-07 | G72: 0.01528 | H72: =G72+(BumpSizeLiborRates*0.0001) -> 0.01518 | J72: 2030-01-07 | K72: 0.01782 | L72: =K72+(BumpSizeLiborRates*0.0001) -> 0.01772 | N72: 2030-01-07 | O72: 0.005 | P72: =O72+(BumpSizeLiborRates*0.0001) -> 0.0049
A73: 66 | B73: =B72+Periodicity -> 2030-02-26 | C73: 0.01348733113 | D73: 0.01338733113 | F73: =F72+Periodicity -> 2030-02-26 | G73: 0.015475 | H73: 0.015375 | J73: =J72+Periodicity -> 2030-02-26 | K73: 0.0179 | L73: 0.0178 | N73: =N72+Periodicity -> 2030-02-26 | O73: 0.005 | P73: 0.0049
A74: =A73+1 -> 67 | B74: 2030-04-17 | C74: =C73+0.02% -> 0.01368733113 | D74: 0.01358733113 | F74: 2030-04-17 | G74: =G73+0.0195% -> 0.01567 | H74: 0.01557 | J74: 2030-04-17 | K74: 0.01798 | L74: 0.01788 | N74: 2030-04-17 | O74: 0.005 | P74: 0.0049
A75: 68 | B75: 2030-06-06 | C75: 0.01388733113 | D75: 0.01378733113 | F75: 2030-06-06 | G75: 0.015865 | H75: 0.015765 | J75: 2030-06-06 | K75: 0.01806 | L75: 0.01796 | N75: 2030-06-06 | O75: 0.005 | P75: 0.0049
A76: 69 | B76: 2030-07-26 | C76: 0.01408733113 | D76: 0.01398733113 | F76: 2030-07-26 | G76: 0.01606 | H76: 0.01596 | J76: 2030-07-26 | K76: 0.01814 | L76: 0.01804 | N76: 2030-07-26 | O76: 0.005 | P76: 0.0049
A77: 70 | B77: 2030-09-14 | C77: 0.01428733113 | D77: 0.01418733113 | F77: 2030-09-14 | G77: 0.016255 | H77: 0.016155 | J77: 2030-09-14 | K77: 0.01822 | L77: 0.01812 | N77: 2030-09-14 | O77: 0.005 | P77: 0.0049
A78: 71 | B78: 2030-11-03 | C78: 0.01448733113 | D78: 0.01438733113 | F78: 2030-11-03 | G78: 0.01645 | H78: 0.01635 | J78: 2030-11-03 | K78: 0.0183 | L78: 0.0182 | N78: 2030-11-03 | O78: 0.005 | P78: 0.0049
A79: 72 | B79: 2030-12-23 | C79: 0.01468733113 | D79: 0.01458733113 | F79: 2030-12-23 | G79: 0.016645 | H79: 0.016545 | J79: 2030-12-23 | K79: 0.01838 | L79: 0.01828 | N79: 2030-12-23 | O79: 0.005 | P79: 0.0049
A80: 73 | B80: 2031-02-11 | C80: 0.01488733113 | D80: 0.01478733113 | F80: 2031-02-11 | G80: 0.01684 | H80: 0.01674 | J80: 2031-02-11 | K80: 0.01846 | L80: 0.01836 | N80: 2031-02-11 | O80: 0.005 | P80: 0.0049
A81: 74 | B81: 2031-04-02 | C81: 0.01508733113 | D81: 0.01498733113 | F81: 2031-04-02 | G81: 0.017035 | H81: 0.016935 | J81: 2031-04-02 | K81: 0.01854 | L81: 0.01844 | N81: 2031-04-02 | O81: 0.005 | P81: 0.0049
A82: 75 | B82: 2031-05-22 | C82: 0.01528733113 | D82: 0.01518733113 | F82: 2031-05-22 | G82: 0.01723 | H82: 0.01713 | J82: 2031-05-22 | K82: 0.01862 | L82: 0.01852 | N82: 2031-05-22 | O82: 0.005 | P82: 0.0049
A83: 76 | B83: 2031-07-11 | C83: 0.01548733113 | D83: 0.01538733113 | F83: 2031-07-11 | G83: 0.017425 | H83: 0.017325 | J83: 2031-07-11 | K83: 0.0187 | L83: 0.0186 | N83: 2031-07-11 | O83: 0.005 | P83: 0.0049
A84: 77 | B84: 2031-08-30 | C84: 0.01568733113 | D84: 0.01558733113 | F84: 2031-08-30 | G84: 0.01762 | H84: 0.01752 | J84: 2031-08-30 | K84: 0.01878 | L84: 0.01868 | N84: 2031-08-30 | O84: 0.005 | P84: 0.0049
A85: 78 | B85: 2031-10-19 | C85: 0.01588733113 | D85: 0.01578733113 | F85: 2031-10-19 | G85: 0.017815 | H85: 0.017715 | J85: 2031-10-19 | K85: 0.01886 | L85: 0.01876 | N85: 2031-10-19 | O85: 0.005 | P85: 0.0049
A86: 79 | B86: 2031-12-08 | C86: 0.01608733113 | D86: 0.01598733113 | F86: 2031-12-08 | G86: 0.01801 | H86: 0.01791 | J86: 2031-12-08 | K86: 0.01894 | L86: 0.01884 | N86: 2031-12-08 | O86: 0.005 | P86: 0.0049
A87: 80 | B87: 2032-01-27 | C87: 0.01628733113 | D87: 0.01618733113 | F87: 2032-01-27 | G87: 0.018205 | H87: 0.018105 | J87: 2032-01-27 | K87: 0.01902 | L87: 0.01892 | N87: 2032-01-27 | O87: 0.005 | P87: 0.0049
A88: 81 | B88: 2032-03-17 | C88: 0.01648733113 | D88: 0.01638733113 | F88: 2032-03-17 | G88: 0.0184 | H88: 0.0183 | J88: 2032-03-17 | K88: 0.0191 | L88: 0.019 | N88: 2032-03-17 | O88: 0.005 | P88: 0.0049
A89: 82 | B89: 2032-05-06 | C89: 0.01668733113 | D89: 0.01658733113 | F89: 2032-05-06 | G89: 0.018595 | H89: 0.018495 | J89: 2032-05-06 | K89: 0.01918 | L89: 0.01908 | N89: 2032-05-06 | O89: 0.005 | P89: 0.0049
A90: 83 | B90: 2032-06-25 | C90: 0.01688733113 | D90: 0.01678733113 | F90: 2032-06-25 | G90: 0.01879 | H90: 0.01869 | J90: 2032-06-25 | K90: 0.01926 | L90: 0.01916 | N90: 2032-06-25 | O90: 0.005 | P90: 0.0049
A91: 84 | B91: 2032-08-14 | C91: 0.01708733113 | D91: 0.01698733113 | F91: 2032-08-14 | G91: 0.018985 | H91: 0.018885 | J91: 2032-08-14 | K91: 0.01934 | L91: 0.01924 | N91: 2032-08-14 | O91: 0.005 | P91: 0.0049
A92: 85 | B92: 2032-10-03 | C92: 0.01728733113 | D92: 0.01718733113 | F92: 2032-10-03 | G92: 0.01918 | H92: 0.01908 | J92: 2032-10-03 | K92: 0.01942 | L92: 0.01932 | N92: 2032-10-03 | O92: 0.005 | P92: 0.0049
A93: 86 | B93: 2032-11-22 | C93: 0.01748733113 | D93: 0.01738733113 | F93: 2032-11-22 | G93: 0.019375 | H93: 0.019275 | J93: 2032-11-22 | K93: 0.0195 | L93: 0.0194 | N93: 2032-11-22 | O93: 0.005 | P93: 0.0049
A94: 87 | B94: 2033-01-11 | C94: 0.01768733113 | D94: 0.01758733113 | F94: 2033-01-11 | G94: 0.01957 | H94: 0.01947 | J94: 2033-01-11 | K94: 0.01958 | L94: 0.01948 | N94: 2033-01-11 | O94: 0.005 | P94: 0.0049
A95: 88 | B95: 2033-03-02 | C95: 0.01788733113 | D95: 0.01778733113 | F95: 2033-03-02 | G95: 0.019765 | H95: 0.019665 | J95: 2033-03-02 | K95: 0.01966 | L95: 0.01956 | N95: 2033-03-02 | O95: 0.005 | P95: 0.0049
A96: 89 | B96: 2033-04-21 | C96: 0.01808733113 | D96: 0.01798733113 | F96: 2033-04-21 | G96: 0.01996 | H96: 0.01986 | J96: 2033-04-21 | K96: 0.01974 | L96: 0.01964 | N96: 2033-04-21 | O96: 0.005 | P96: 0.0049
A97: 90 | B97: 2033-06-10 | C97: 0.01828733113 | D97: 0.01818733113 | F97: 2033-06-10 | G97: 0.020155 | H97: 0.020055 | J97: 2033-06-10 | K97: 0.01982 | L97: 0.01972 | N97: 2033-06-10 | O97: 0.005 | P97: 0.0049
A98: 91 | B98: 2033-07-30 | C98: 0.01848733113 | D98: 0.01838733113 | F98: 2033-07-30 | G98: 0.02035 | H98: 0.02025 | J98: 2033-07-30 | K98: 0.0199 | L98: 0.0198 | N98: 2033-07-30 | O98: 0.005 | P98: 0.0049
A99: 92 | B99: 2033-09-18 | C99: 0.01868733113 | D99: 0.01858733113 | F99: 2033-09-18 | G99: 0.020545 | H99: 0.020445 | J99: 2033-09-18 | K99: 0.01998 | L99: 0.01988 | N99: 2033-09-18 | O99: 0.005 | P99: 0.0049
A100: 93 | B100: 2033-11-07 | C100: 0.01888733113 | D100: 0.01878733113 | F100: 2033-11-07 | G100: 0.02074 | H100: 0.02064 | J100: 2033-11-07 | K100: 0.02006 | L100: 0.01996 | N100: 2033-11-07 | O100: 0.005 | P100: 0.0049
A101: 94 | B101: 2033-12-27 | C101: 0.01908733113 | D101: 0.01898733113 | F101: 2033-12-27 | G101: 0.020935 | H101: 0.020835 | J101: 2033-12-27 | K101: 0.02014 | L101: 0.02004 | N101: 2033-12-27 | O101: 0.005 | P101: 0.0049
A102: 95 | B102: 2034-02-15 | C102: 0.01928733113 | D102: 0.01918733113 | F102: 2034-02-15 | G102: 0.02113 | H102: 0.02103 | J102: 2034-02-15 | K102: 0.02022 | L102: 0.02012 | N102: 2034-02-15 | O102: 0.005 | P102: 0.0049
A103: 96 | B103: 2034-04-06 | C103: 0.01948733113 | D103: 0.01938733113 | F103: 2034-04-06 | G103: 0.021325 | H103: 0.021225 | J103: 2034-04-06 | K103: 0.0203 | L103: 0.0202 | N103: 2034-04-06 | O103: 0.005 | P103: 0.0049
A104: 97 | B104: 2034-05-26 | C104: 0.01968733113 | D104: =C104+(BumpSizeLiborRates*0.0001) -> 0.01958733113 | F104: 2034-05-26 | G104: 0.02152 | H104: =G104+(BumpSizeLiborRates*0.0001) -> 0.02142 | J104: 2034-05-26 | K104: 0.02038 | L104: =K104+(BumpSizeLiborRates*0.0001) -> 0.02028 | N104: 2034-05-26 | O104: 0.005 | P104: =O104+(BumpSizeLiborRates*0.0001) -> 0.0049
A105: 98 | B105: 2034-07-15 | C105: 0.01988733113 | D105: 0.01978733113 | F105: 2034-07-15 | G105: 0.021715 | H105: 0.021615 | J105: 2034-07-15 | K105: 0.02046 | L105: 0.02036 | N105: 2034-07-15 | O105: 0.005 | P105: 0.0049
A106: 99 | B106: 2034-09-03 | C106: 0.02008733113 | D106: 0.01998733113 | F106: 2034-09-03 | G106: 0.02191 | H106: 0.02181 | J106: 2034-09-03 | K106: 0.02054 | L106: 0.02044 | N106: 2034-09-03 | O106: 0.005 | P106: 0.0049
A107: 100 | B107: 2034-10-23 | C107: 0.02028733113 | D107: 0.02018733113 | F107: 2034-10-23 | G107: 0.022105 | H107: 0.022005 | J107: 2034-10-23 | K107: 0.02062 | L107: 0.02052 | N107: 2034-10-23 | O107: 0.005 | P107: 0.0049

Sheet Swaps
B2: Refresh
B4: Swap Trade Details | E4: Fixed Leg | P4: Float Leg
B5: Payer/Receiver | C5: RECEIVER | D5: Row | E5: Accrual Start | F5: Accrual End | G5: Pay Date | H5: ti | I5: N | J5: rFixed | K5: ti | L5: P( tE, ti ) | M5: PVFixed | N5: Show | O5: Row | P5: Fixing Date | Q5: Accrual Start | R5: Accrual End | S5: Pay Date | T5: tj | U5: N | V5: lj-1 | W5: s | X5: lj-1 + s | Y5: tj | Z5: P( tE, tj ) | AA5: PVFloat
B6: Currency | C6: EUR | D6: 1 | E6: =IF(N6,AsOfDate,"") -> 2021-04-04 | F6: =IF(N6,E6+K6*365.25,"") -> 2022-04-04T06:00:00 | G6: =IF(N6,F6,"") -> 2022-04-04T06:00:00 | H6: =IF(N6,t_i,"") -> 1 | I6: =IF(N6,N,"") -> 1000000 | J6: =IF(N6,r_fixed,"") -> 0.01 | K6: =IF(N6,t_i,"") -> 1 | L6: =IF(N6,IF(SetDiscFactToOne,1,VLOOKUP(G6,INDIRECT(DiscountCurve),2,TRUE)),"") -> 1.0041318 | M6: =IF(N6,I6*J6*K6*L6,"") -> 10041.318 | N6: =IF(t_i<=T,TRUE,FALSE) -> TRUE | O6: 1 | P6: =IF(AB16,Q6,"") -> 2021-04-04 | Q6: =IF(AB16,AsOfDate,"") -> 2021-04-04 | R6: =IF(AB16,Q6+Y6*365.25,"") -> 2021-10-03T15:00:00 | S6: =IF(AB16,R6,"") -> 2021-10-03T15:00:00 | T6: =IF(AB16,t_j,"") -> 0.5 | U6: =IF(AB16,N,"") -> 1000000 | V6: =IF(AB16,VLOOKUP(P6,INDIRECT(ForecastCurve),IF(ApplyBump,3,2),TRUE),"") -> 0.0004873311277 | W6: =IF(AB16,s,"") -> 0 | X6: =IF(AB16,V6+(W6*0.0001),"") -> 0.0004873311277 | Y6: =IF(AB16,t_j,"") -> 0.5 | Z6: =IF(AB16,IF(SetDiscFactToOne,1,VLOOKUP(S6,INDIRECT(DiscountCurve),2,TRUE)),"") -> 1.001933373 | AA6: =IF(AB16,U6*X6*Y6*Z6,"") -> 244.1366604
B7: Notional, N | C7: 1000000 | D7: =D6+1 -> 2 | E7: =IF(N7,F6,"") -> 2022-04-04T06:00:00 | F7: =IF(N7,E7+K7*365.25,"") -> 2023-04-04T12:00:00 | G7: =IF(N7,F7,"") -> 2023-04-04T12:00:00 | H7: =IF(N7,H6+t_i,"") -> 2 | I7: 1000000 | J7: 0.01 | K7: 1 | L7: =IF(N7,IF(SetDiscFactToOne,1,VLOOKUP(G7,INDIRECT(DiscountCurve),2,TRUE)),"") -> 1.006927998 | M7: 10069.27998 | N7: =IF(SUM(K$6:K6)+t_i<=T,TRUE,FALSE) -> TRUE | O7: =O6+1 -> 2 | P7: 2021-10-03T15:00:00 | Q7: =IF(AB17,R6,"") -> 2021-10-03T15:00:00 | R7: 2022-04-04T06:00:00 | S7: 2022-04-04T06:00:00 | T7: =IF(AB17,T6+t_j,"") -> 1 | U7: 1000000 | V7: 0.001087331128 | W7: 0 | X7: 0.001087331128 | Y7: 0.5 | Z7: 1.0041318 | AA7: 545.9118813
B8: Fixed Rate, rFixed | C8: 0.01 | D8: =D7+1 -> 3 | E8: =IF(N8,F7,"") -> 2023-04-04T12:00:00 | F8: 2024-04-03T18:00:00 | G8: 2024-04-03T18:00:00 | H8: 3 | I8: 1000000 | J8: 0.01 | K8: 1 | L8: =IF(N8,IF(SetDiscFactToOne,1,VLOOKUP(G8,INDIRECT(DiscountCurve),2,TRUE)),"") -> 1.008377361 | M8: 10083.77361 | N8: =IF(SUM(K$6:K7)+t_i<=T,TRUE,FALSE) -> TRUE | O8: =O7+1 -> 3 | P8: 2022-04-04T06:00:00 | Q8: 2022-04-04T06:00:00 | R8: 2022-10-03T21:00:00 | S8: 2022-10-03T21:00:00 | T8: 1.5 | U8: 1000000 | V8: 0.001887331128 | W8: 0 | X8: 0.001887331128 | Y8: 0.5 | Z8: 1.005494492 | AA8: 948.8505265
B9: Fixed Frequency | C9: =FixedLegFrequencySelected -> ANNUAL | D9: 4 | E9: 2024-04-03T18:00:00 | F9: 2025-04-04 | G9: 2025-04-04 | H9: 4 | I9: 1000000 | J9: 0.01 | K9: 1 | L9: 1.008377361 | M9: 10083.77361 | N9: =IF(SUM(K$6:K8)+t_i<=T,TRUE,FALSE) -> TRUE | O9: 4 | P9: 2022-10-03T21:00:00 | Q9: 2022-10-03T21:00:00 | R9: 2023-04-04T12:00:00 | S9: 2023-04-04T12:00:00 | T9: 2 | U9: 1000000 | V9: 0.002487331128 | W9: 0 | X9: 0.002487331128 | Y9: 0.5 | Z9: 1.006927998 | AA9: 1252.281676
B10: Float Frequency | C10: =FloatLegFrequencySelected -> SEMI-ANNUAL | D10: 5 | E10: 2025-04-04 | F10: 2026-04-04T06:00:00 | G10: 2026-04-04T06:00:00 | H10: 5 | I10: 1000000 | J10: 0.01 | K10: 1 | L10: 1.006927998 | M10: 10069.27998 | N10: =IF(SUM(K$6:K9)+t_i<=T,TRUE,FALSE) -> TRUE | O10: 5 | P10: 2023-04-04T12:00:00 | Q10: 2023-04-04T12:00:00 | R10: 2023-10-04T03:00:00 | S10: 2023-10-04T03:00:00 | T10: 2.5 | U10: 1000000 | V10: 0.003287331128 | W10: 0 | X10: 0.003287331128 | Y10: 0.5 | Z10: 1.007921622 | AA10: 1656.686062
B11: Libor Spread, s | C11: 0 | D11: 6 | N11: =IF(SUM(K$6:K10)+t_i<=T,TRUE,FALSE) -> FALSE | O11: 6 | P11: 2023-10-04T03:00:00 | Q11: 2023-10-04T03:00:00 | R11: 2024-04-03T18:00:00 | S11: 2024-04-03T18:00:00 | T11: 3 | U11: 1000000 | V11: 0.004087331128 | W11: 0 | X11: 0.004087331128 | Y11: 0.5 | Z11: 1.008377361 | AA11: 2060.786088
B12: Tenor, T | C12: 5 | D12: 7 | N12: =IF(SUM(K$6:K11)+t_i<=T,TRUE,FALSE) -> FALSE | O12: 7 | P12: 2024-04-03T18:00:00 | Q12: 2024-04-03T18:00:00 | R12: 2024-10-03T09:00:00 | S12: 2024-10-03T09:00:00 | T12: 3.5 | U12: 1000000 | V12: 0.004687331128 | W12: 0 | X12: 0.004687331128 | Y12: 0.5 | Z12: 1.0085984 | AA12: 2363.817337
D13: 8 | N13: =IF(SUM(K$6:K12)+t_i<=T,TRUE,FALSE) -> FALSE | O13: 8 | P13: 2024-10-03T09:00:00 | Q13: 2024-10-03T09:00:00 | R13: 2025-04-04 | S13: 2025-04-04 | T13: 4 | U13: 1000000 | V13: 0.005487331128 | W13: 0 | X13: 0.005487331128 | Y13: 0.5 | Z13: 1.008377361 | AA13: 2766.650241
B14: Approximate | C14: FALSE | D14: 9 | N14: =IF(SUM(K$6:K13)+t_i<=T,TRUE,FALSE) -> FALSE | O14: 9 | P14: 2025-04-04 | Q14: 2025-04-04 | R14: 2025-10-03T15:00:00 | S14: 2025-10-03T15:00:00 | T14: 4.5 | U14: 1000000 | V14: 0.006287331128 | W14: 0 | X14: 0.006287331128 | Y14: 0.5 | Z14: 1.007921622 | AA14: 3168.568495
D15: 10 | N15: =IF(SUM(K$6:K14)+t_i<=T,TRUE,FALSE) -> FALSE | O15: 10 | P15: 2025-10-03T15:00:00 | Q15: 2025-10-03T15:00:00 | R15: 2026-04-04T06:00:00 | S15: 2026-04-04T06:00:00 | T15: 5 | U15: 1000000 | V15: 0.006887331128 | W15: 0 | X15: 0.006887331128 | Y15: 0.5 | Z15: 1.006927998 | AA15: 3467.523272 | AB15: Show
B16: Swap Pricing | D16: 11 | N16: =IF(SUM(K$6:K15)+t_i<=T,TRUE,FALSE) -> FALSE | O16: 11 | AB16: =IF(t_j<=T,TRUE,FALSE) -> TRUE
B17: Swap PV | C17: =PV_Swap -> 31872.21294 | D17: 12 | N17: =IF(SUM(K$6:K16)+t_i<=T,TRUE,FALSE) -> FALSE | O17: 12 | AB17: =IF(SUM(Y$6:Y6)+t_j<=T,TRUE,FALSE) -> TRUE
B18: Fixed Leg PV | C18: =PV_FixedLeg -> 50347.42518 | D18: 13 | N18: =IF(SUM(K$6:K17)+t_i<=T,TRUE,FALSE) -> FALSE | O18: 13 | AB18: =IF(SUM(Y$6:Y7)+t_j<=T,TRUE,FALSE) -> TRUE
B19: Float Leg PV | C19: =PV_FloatLeg -> -18475.21224 | D19: 14 | N19: =IF(SUM(K$6:K18)+t_i<=T,TRUE,FALSE) -> FALSE | O19: 14 | AB19: =IF(SUM(Y$6:Y8)+t_j<=T,TRUE,FALSE) -> TRUE
B20: Par Rate | C20: =p -> 0.003669544604 | D20: 15 | N20: =IF(SUM(K$6:K19)+t_i<=T,TRUE,FALSE) -> FALSE | O20: 15 | AB20: =IF(SUM(Y$6:Y9)+t_j<=T,TRUE,FALSE) -> TRUE
D21: 16 | N21: =IF(SUM(K$6:K20)+t_i<=T,TRUE,FALSE) -> FALSE | O21: 16 | AB21: =IF(SUM(Y$6:Y10)+t_j<=T,TRUE,FALSE) -> TRUE
B22: Swap Risk | D22: 17 | N22: =IF(SUM(K$6:K21)+t_i<=T,TRUE,FALSE) -> FALSE | O22: 17 | AB22: =IF(SUM(Y$6:Y11)+t_j<=T,TRUE,FALSE) -> TRUE
B23: PV01 | C23: =PV01_ -> 503.4742518 | D23: 18 | N23: =IF(SUM(K$6:K22)+t_i<=T,TRUE,FALSE) -> FALSE | O23: 18 | AB23: =IF(SUM(Y$6:Y12)+t_j<=T,TRUE,FALSE) -> TRUE
B24: Numerical DV01 | C24: =NumericalDV01 -> 511.8180529 | D24: 19 | N24: =IF(SUM(K$6:K23)+t_i<=T,TRUE,FALSE) -> FALSE | O24: 19 | AB24: =IF(SUM(Y$6:Y13)+t_j<=T,TRUE,FALSE) -> TRUE
B25: Analytical DV01 | C25: =AnalyticalDV01 -> 513.0754768 | D25: 20 | N25: =IF(SUM(K$6:K24)+t_i<=T,TRUE,FALSE) -> FALSE | O25: 20 | AB25: =IF(SUM(Y$6:Y14)+t_j<=T,TRUE,FALSE) -> TRUE
B26: +/- | C26: =C25-C24 -> 1.257423847 | D26: 21 | N26: =IF(SUM(K$6:K25)+t_i<=T,TRUE,FALSE) -> FALSE | O26: 21 | AB26: =IF(SUM(Y$6:Y15)+t_j<=T,TRUE,FALSE) -> FALSE
D27: 22 | N27: =IF(SUM(K$6:K26)+t_i<=T,TRUE,FALSE) -> FALSE | O27: 22 | AB27: =IF(SUM(Y$6:Y16)+t_j<=T,TRUE,FALSE) -> FALSE
B28: Yield Curves | D28: 23 | N28: =IF(SUM(K$6:K27)+t_i<=T,TRUE,FALSE) -> FALSE | O28: 23 | AB28: =IF(SUM(Y$6:Y17)+t_j<=T,TRUE,FALSE) -> FALSE
B29: Forecast Curve | C29: =Currency&IF(Currency="USD","3ML","6ML") -> EUR6ML | D29: 24 | N29: =IF(SUM(K$6:K28)+t_i<=T,TRUE,FALSE) -> FALSE | O29: 24 | AB29: =IF(SUM(Y$6:Y18)+t_j<=T,TRUE,FALSE) -> FALSE
B30: Discount Curve | C30: =Currency&"DiscFact"&IF(ApplyBump,"Bumped","") -> EURDiscFact | D30: 25 | N30: =IF(SUM(K$6:K29)+t_i<=T,TRUE,FALSE) -> FALSE | O30: 25 | AB30: =IF(SUM(Y$6:Y19)+t_j<=T,TRUE,FALSE) -> FALSE
B31: Set DiscFact=1 | C31: =Approximate -> FALSE | D31: 26 | N31: =IF(SUM(K$6:K30)+t_i<=T,TRUE,FALSE) -> FALSE | O31: 26 | AB31: =IF(SUM(Y$6:Y20)+t_j<=T,TRUE,FALSE) -> FALSE
D32: 27 | N32: =IF(SUM(K$6:K31)+t_i<=T,TRUE,FALSE) -> FALSE | O32: 27 | AB32: =IF(SUM(Y$6:Y21)+t_j<=T,TRUE,FALSE) -> FALSE
B33: Swap Conventions | D33: 28 | N33: =IF(SUM(K$6:K32)+t_i<=T,TRUE,FALSE) -> FALSE | O33: 28 | AB33: =IF(SUM(Y$6:Y22)+t_j<=T,TRUE,FALSE) -> FALSE
B34: Pay / Receive Indicator | D34: 29 | N34: =IF(SUM(K$6:K33)+t_i<=T,TRUE,FALSE) -> FALSE | O34: 29 | AB34: =IF(SUM(Y$6:Y23)+t_j<=T,TRUE,FALSE) -> FALSE
B35: Phi, f | C35: =IF(C5="PAYER",-1,1) -> 1 | D35: 30 | N35: =IF(SUM(K$6:K34)+t_i<=T,TRUE,FALSE) -> FALSE | O35: 30 | AB35: =IF(SUM(Y$6:Y24)+t_j<=T,TRUE,FALSE) -> FALSE
D36: 31 | N36: =IF(SUM(K$6:K35)+t_i<=T,TRUE,FALSE) -> FALSE | O36: 31 | AB36: =IF(SUM(Y$6:Y25)+t_j<=T,TRUE,FALSE) -> FALSE
B37: Use Market Standard Conventions | D37: 32 | N37: =IF(SUM(K$6:K36)+t_i<=T,TRUE,FALSE) -> FALSE | O37: 32 | AB37: =IF(SUM(Y$6:Y26)+t_j<=T,TRUE,FALSE) -> FALSE
B38: Override Mkt Freq | C38: =Approximate -> FALSE | D38: 33 | I38: =IF(N38,N,"") ->  | J38: =IF(N38,r_fixed,"") ->  | K38: =IF(N38,t_i,"") ->  | L38: =IF(N38,IF(SetDiscFactToOne,1,VLOOKUP(G38,INDIRECT(DiscountCurve),2,TRUE)),"") ->  | M38: =IF(N38,I38*J38*K38*L38,"") ->  | N38: =IF(SUM(K$6:K37)+t_i<=T,TRUE,FALSE) -> FALSE | O38: 33 | P38: =IF(AB48,Q38,"") ->  | R38: =IF(AB48,Q38+Y38*365.25,"") ->  | S38: =IF(AB48,R38,"") ->  | U38: =IF(AB48,N,"") ->  | V38: =IF(AB48,VLOOKUP(P38,INDIRECT(ForecastCurve),IF(ApplyBump,3,2),TRUE),"") ->  | W38: =IF(AB48,s,"") ->  | X38: =IF(AB48,V38+(W38*0.0001),"") ->  | Y38: =IF(AB48,t_j,"") ->  | Z38: =IF(AB48,IF(SetDiscFactToOne,1,VLOOKUP(S38,INDIRECT(DiscountCurve),2,TRUE)),"") ->  | AA38: =IF(AB48,U38*X38*Y38*Z38,"") ->  | AB38: =IF(SUM(Y$6:Y27)+t_j<=T,TRUE,FALSE) -> FALSE
D39: 34 | H39: =IF(N39,H38+t_i,"") ->  | N39: =IF(SUM(K$6:K38)+t_i<=T,TRUE,FALSE) -> FALSE | O39: 34 | Q39: =IF(AB49,R38,"") ->  | T39: =IF(AB49,T38+t_j,"") ->  | AB39: =IF(SUM(Y$6:Y28)+t_j<=T,TRUE,FALSE) -> FALSE
B40: Fixed Leg | D40: 35 | N40: =IF(SUM(K$6:K39)+t_i<=T,TRUE,FALSE) -> FALSE | O40: 35 | AB40: =IF(SUM(Y$6:Y29)+t_j<=T,TRUE,FALSE) -> FALSE
B41: Market Freq | C41: =INDIRECT(Currency&".Fixed.Period") -> ANNUAL | D41: 36 | N41: =IF(SUM(K$6:K40)+t_i<=T,TRUE,FALSE) -> FALSE | O41: 36 | AB41: =IF(SUM(Y$6:Y30)+t_j<=T,TRUE,FALSE) -> FALSE
B42: Selected Freq | C42: =IF(OverrideMarketFrequency,"ANNUAL",C41) -> ANNUAL | D42: 37 | N42: =IF(SUM(K$6:K41)+t_i<=T,TRUE,FALSE) -> FALSE | O42: 37 | AB42: =IF(SUM(Y$6:Y31)+t_j<=T,TRUE,FALSE) -> FALSE
B43: Accrual Period | C43: =IF(C42="ANNUAL",1,IF(C42="SEMI-ANNUAL",0.5,IF(C42="QUARTERLY",0.25,1/12))) -> 1 | D43: 38 | N43: =IF(SUM(K$6:K42)+t_i<=T,TRUE,FALSE) -> FALSE | O43: 38 | AB43: =IF(SUM(Y$6:Y32)+t_j<=T,TRUE,FALSE) -> FALSE
D44: 39 | N44: =IF(SUM(K$6:K43)+t_i<=T,TRUE,FALSE) -> FALSE | O44: 39 | AB44: =IF(SUM(Y$6:Y33)+t_j<=T,TRUE,FALSE) -> FALSE
B45: Float Leg | D45: 40 | N45: =IF(SUM(K$6:K44)+t_i<=T,TRUE,FALSE) -> FALSE | O45: 40 | AB45: =IF(SUM(Y$6:Y34)+t_j<=T,TRUE,FALSE) -> FALSE
B46: Market Freq | C46: =INDIRECT(Currency&".Float.Period") -> SEMI-ANNUAL | D46: 41 | N46: =IF(SUM(K$6:K45)+t_i<=T,TRUE,FALSE) -> FALSE | O46: 41 | AB46: =IF(SUM(Y$6:Y35)+t_j<=T,TRUE,FALSE) -> FALSE
B47: Selected Freq | C47: =IF(OverrideMarketFrequency,"ANNUAL",C46) -> SEMI-ANNUAL | D47: 42 | N47: =IF(SUM(K$6:K46)+t_i<=T,TRUE,FALSE) -> FALSE | O47: 42 | AB47: =IF(SUM(Y$6:Y36)+t_j<=T,TRUE,FALSE) -> FALSE
B48: Accrual Period | C48: =IF(C47="ANNUAL",1,IF(C47="SEMI-ANNUAL",0.5,IF(C47="QUARTERLY",0.25,1/12))) -> 0.5 | D48: 43 | N48: =IF(SUM(K$6:K47)+t_i<=T,TRUE,FALSE) -> FALSE | O48: 43 | AB48: =IF(SUM(Y$6:Y37)+t_j<=T,TRUE,FALSE) -> FALSE
D49: 44 | N49: =IF(SUM(K$6:K48)+t_i<=T,TRUE,FALSE) -> FALSE | O49: 44 | AB49: =IF(SUM(Y$6:Y38)+t_j<=T,TRUE,FALSE) -> FALSE
B50: Swap Pricing & Risk Calculations | D50: 45 | N50: =IF(SUM(K$6:K49)+t_i<=T,TRUE,FALSE) -> FALSE | O50: 45 | AB50: =IF(SUM(Y$6:Y39)+t_j<=T,TRUE,FALSE) -> FALSE
B51: Swap Pricing | D51: 46 | N51: =IF(SUM(K$6:K50)+t_i<=T,TRUE,FALSE) -> FALSE | O51: 46 | AB51: =IF(SUM(Y$6:Y40)+t_j<=T,TRUE,FALSE) -> FALSE
B52: Fixed Leg PV | C52: =Phi*SUM(PVlets_Fixed) -> 50347.42518 | D52: 47 | N52: =IF(SUM(K$6:K51)+t_i<=T,TRUE,FALSE) -> FALSE | O52: 47 | AB52: =IF(SUM(Y$6:Y41)+t_j<=T,TRUE,FALSE) -> FALSE
B53: Float Leg PV | C53: =-Phi*SUM(PVlets_Float) -> -18475.21224 | D53: 48 | N53: =IF(SUM(K$6:K52)+t_i<=T,TRUE,FALSE) -> FALSE | O53: 48 | AB53: =IF(SUM(Y$6:Y42)+t_j<=T,TRUE,FALSE) -> FALSE
B54: Spread PV | C54: =-Phi*SUMPRODUCT(U6:U55,W6:W55,Y6:Y55,Z6:Z55)/10000 -> 0 | D54: 49 | N54: =IF(SUM(K$6:K53)+t_i<=T,TRUE,FALSE) -> FALSE | O54: 49 | AB54: =IF(SUM(Y$6:Y43)+t_j<=T,TRUE,FALSE) -> FALSE
B55: Total PV | C55: =PV_FixedLeg+PV_FloatLeg -> 31872.21294 | D55: 50 | N55: =IF(SUM(K$6:K54)+t_i<=T,TRUE,FALSE) -> FALSE | O55: 50 | AB55: =IF(SUM(Y$6:Y44)+t_j<=T,TRUE,FALSE) -> FALSE
B56: Par Rate, p | C56: =ABS(PV_FloatLeg)/Annuity_Fixed -> 0.003669544604 | AB56: =IF(SUM(Y$6:Y45)+t_j<=T,TRUE,FALSE) -> FALSE
AB57: =IF(SUM(Y$6:Y46)+t_j<=T,TRUE,FALSE) -> FALSE
B58: Annuity Factors | AB58: =IF(SUM(Y$6:Y47)+t_j<=T,TRUE,FALSE) -> FALSE
B59: Annuity, AFixed | C59: =SUMPRODUCT(K6:K55,L6:L55) -> 5.034742518 | AB59: =IF(SUM(Y$6:Y48)+t_j<=T,TRUE,FALSE) -> FALSE
B60: Annuity, AFloat | C60: =SUMPRODUCT(Y6:Y55,Z6:Z55) -> 5.033306014 | AB60: =IF(SUM(Y$6:Y49)+t_j<=T,TRUE,FALSE) -> FALSE
B61: Annuity, ANFixed | C61: =SUMPRODUCT(K6:K55,L6:L55,I6:I55) -> 5034742.518 | AB61: =IF(SUM(Y$6:Y50)+t_j<=T,TRUE,FALSE) -> FALSE
B62: Annuity, ANFloat | C62: =SUMPRODUCT(Y6:Y55,Z6:Z55,U6:U55) -> 5033306.014 | AB62: =IF(SUM(Y$6:Y51)+t_j<=T,TRUE,FALSE) -> FALSE
AB63: =IF(SUM(Y$6:Y52)+t_j<=T,TRUE,FALSE) -> FALSE
B64: Analytical Risk | AB64: =IF(SUM(Y$6:Y53)+t_j<=T,TRUE,FALSE) -> FALSE
B65: Duration, DModFixed | C65: =SUMPRODUCT(H6:H55,I6:I55,J6:J55,K6:K55,L6:L55)/SUMPRODUCT(I6:I55,J6:J55,K6:K55,L6:L55)*(1+p) -> 3.0124124 | AB65: =IF(SUM(Y$6:Y54)+t_j<=T,TRUE,FALSE) -> FALSE
B66: Duration, DModFloat | C66: =SUMPRODUCT(T6:T55,U6:U55,Y6:Y55,X6:X55,Z6:Z55)/SUMPRODUCT(U6:U55,X6:X55,Y6:Y55,Z6:Z55)*(1+p) -> 3.57764175
B67: PV01 | C67: =Phi*Annuity_Fixed/10000 -> 503.4742518
B68: DV01 | C68: =((Phi*Annuity_Fixed)+((PV_Swap-PV_FloatSpread)*DurationFixed)+(PV_FloatSpread*DurationFloat))/10000 -> 513.0754768
B70: Numerical Risk
B71: Apply Risk Bump | C71: FALSE
B72: PV No Bump | C72: 31872.52019
B73: PV With Bump | C73: 32384.33825
B74: Numerical DV01 | C74: =C73-C72 -> 511.8180529

Sheet Case Study
B26: Annuity, A
M28: Annuity Approximation
B30: Fixed Leg | C30: Cashflow 1 | D30: Cashflow 2 | F30: Float Leg | G30: Cashflow 1 | H30: Cashflow 2 | M30: Fixed Leg | N30: Cashflow 1 | O30: Cashflow 2 | Q30: Float Leg | R30: Cashflow 1 | S30: Cashflow 2
B31: notional, N | C31: 10000000 | D31: 10000000 | F31: notional, N | G31: 10000000 | H31: 10000000 | M31: notional, N | N31: 10000000 | O31: 10000000 | Q31: notional, N | R31: 10000000 | S31: 10000000
B32: YearFrac, tau | C32: 1 | D32: 1 | F32: YearFrac, tau | G32: 1 | H32: 1 | M32: YearFrac, tau | N32: 1 | O32: 1 | Q32: YearFrac, tau | R32: 1 | S32: 1
B33: DiscFact, P | C33: 0.99 | D33: 0.9804 | F33: DiscFact, P | G33: 0.99 | H33: 0.9804 | M33: DiscFact, P | N33: 1 | O33: 1 | Q33: DiscFact, P | R33: 1 | S33: 1
B36: A( Fixed ) | C36: =SUMPRODUCT(C31:D31,C32:D32,C33:D33) -> 19704000 | F36: A( Float ) | G36: =SUMPRODUCT(G31:H31,G32:H32,G33:H33) -> 19704000 | M36: A( Fixed ) | N36: =SUMPRODUCT(N31:O31,N32:O32,N33:O33) -> 20000000 | Q36: A( Float ) | R36: =SUMPRODUCT(R31:S31,R32:S32,R33:S33) -> 20000000
M37: +/- | N37: =N36-C36 -> 296000 | Q37: +/- | R37: =R36-G36 -> 296000
M38: +/- % | N38: =N37/C36 -> 0.01502233049 | Q38: +/- % | R38: =R37/G36 -> 0.01502233049
B43: Par Rate, p
M50: Par Rate Approximation
B52: Fixed Leg | C52: Cashflow 1 | D52: Cashflow 2 | F52: Float Leg | G52: Cashflow 1 | H52: Cashflow 2 | M52: Fixed Leg | N52: Cashflow 1 | O52: Cashflow 2 | Q52: Float Leg | R52: Cashflow 1 | S52: Cashflow 2
B53: notional, N | C53: 10000000 | D53: 10000000 | F53: notional, N | G53: 10000000 | H53: 10000000 | M53: notional, N | N53: 10000000 | O53: 10000000 | Q53: notional, N | R53: 10000000 | S53: 10000000
B54: fixed rate, r | C54: 0.015 | D54: 0.015 | F54: float rate, l | G54: 0.0028 | H54: 0.00514 | M54: fixed rate, r | N54: 0.015 | O54: 0.015 | Q54: float rate, l | R54: 0.0028 | S54: 0.00514
B55: YearFrac, tau | C55: 1 | D55: 1 | F55: YearFrac, tau | G55: 1 | H55: 1 | M55: YearFrac, tau | N55: 1 | O55: 1 | Q55: YearFrac, tau | R55: 1 | S55: 1
B56: DiscFact, P | C56: 0.99 | D56: 0.9804 | F56: DiscFact, P | G56: 0.99 | H56: 0.9804 | M56: DiscFact, P | N56: 1 | O56: 1 | Q56: DiscFact, P | R56: 1 | S56: 1
B58: A( Fixed ) | C58: =C36 -> 19704000 | F58: PV( Float ) | G58: =SUMPRODUCT(G53:H53,G54:H54,G55:H55,G56:H56) -> 78112.56 | M58: A( Fixed ) | N58: =N36 -> 20000000 | Q58: PV( Float ) | R58: =SUMPRODUCT(R53:S53,R54:S54,R55:S55,R56:S56) -> 79400
B60: Par Rate, p | C60: =G58/C58 -> 0.003964299635 | M60: Par Rate, p | N60: =R58/N58 -> 0.00397
M61: +/- % | N61: =N60-C60 -> 5.700365408e-06
M69: Swap PV Approximation
B71: Fixed Leg | C71: Cashflow 1 | D71: Cashflow 2 | F71: Float Leg | G71: Cashflow 1 | H71: Cashflow 2 | M71: Fixed Leg | N71: Cashflow 1 | O71: Cashflow 2 | Q71: Float Leg | R71: Cashflow 1 | S71: Cashflow 2
B72: notional, N | C72: 10000000 | D72: 10000000 | F72: notional, N | G72: 10000000 | H72: 10000000 | M72: notional, N | N72: 10000000 | O72: 10000000 | Q72: notional, N | R72: 10000000 | S72: 10000000
B73: fixed rate, r | C73: 0.015 | D73: 0.015 | F73: float rate, l | G73: 0.0028 | H73: 0.00514 | M73: fixed rate, r | N73: 0.015 | O73: 0.015 | Q73: float rate, l | R73: 0.0028 | S73: 0.00514
B74: YearFrac, tau | C74: 1 | D74: 1 | F74: YearFrac, tau | G74: 1 | H74: 1 | M74: YearFrac, tau | N74: 1 | O74: 1 | Q74: YearFrac, tau | R74: 1 | S74: 1
B75: DiscFact, P | C75: 0.99 | D75: 0.9804 | F75: DiscFact, P | G75: 0.99 | H75: 0.9804 | M75: DiscFact, P | N75: 1 | O75: 1 | Q75: DiscFact, P | R75: 1 | S75: 1
B77: PV( Fixed ) | C77: =SUMPRODUCT(C72:D72,C73:D73,C74:D74,C75:D75) -> 295560 | F77: PV( Float ) | G77: =SUMPRODUCT(G72:H72,G73:H73,G74:H74,G75:H75) -> 78112.56 | M77: PV( Fixed ) | N77: =SUMPRODUCT(N72:O72,N73:O73,N74:O74,N75:O75) -> 300000 | Q77: PV( Float ) | R77: =SUMPRODUCT(R72:S72,R73:S73,R74:S74,R75:S75) -> 79400
B81: Swap
B82: Swap Type | C82: Receiver | M82: Swap Type | N82: Receiver
B83: Phi | C83: =IF(C82="Receiver",1,-1) -> 1 | M83: Phi | N83: =IF(N82="Receiver",1,-1) -> 1
B84: PV( Swap ) | C84: =C83*(C77-G77) -> 217447.44 | M84: PV( Swap ) | N84: =N83*(N77-R77) -> 220600
M85: +/- | N85: =N84-C84 -> 3152.56
M86: +/- % | N86: =N85/C84 -> 0.01449803226
B91: Macaulay's Duration, D
M93: Macaulay's Duration Approximation
B95: Fixed Leg | C95: Cashflow 1 | D95: Cashflow 2 | F95: Float Leg | G95: Cashflow 1 | H95: Cashflow 2 | M95: Fixed Leg | N95: Cashflow 1 | O95: Cashflow 2 | Q95: Float Leg | R95: Cashflow 1 | S95: Cashflow 2
B96: time, t | C96: 1 | D96: 2 | F96: time, t | G96: 1 | H96: 2 | M96: time, t | N96: 1 | O96: 2 | Q96: time, t | R96: 1 | S96: 2
B97: notional, N | C97: 10000000 | D97: 10000000 | F97: notional, N | G97: 10000000 | H97: 10000000 | M97: notional, N | N97: 10000000 | O97: 10000000 | Q97: notional, N | R97: 10000000 | S97: 10000000
B98: fixed rate, r | C98: 0.015 | D98: 0.015 | F98: float rate, l | G98: 0.0028 | H98: 0.00514 | M98: fixed rate, r | N98: 0.015 | O98: 0.015 | Q98: float rate, l | R98: 0.0028 | S98: 0.00514
B99: YearFrac, tau | C99: 1 | D99: 1 | F99: YearFrac, tau | G99: 1 | H99: 1 | M99: YearFrac, tau | N99: 1 | O99: 1 | Q99: YearFrac, tau | R99: 1 | S99: 1
B100: DiscFact, P | C100: 0.99 | D100: 0.9804 | F100: DiscFact, P | G100: 0.99 | H100: 0.9804 | M100: DiscFact, P | N100: 1 | O100: 1 | Q100: DiscFact, P | R100: 1 | S100: 1
B102: Numerator | C102: =SUMPRODUCT(C96:D96,C97:D97,C98:D98,C99:D99,C100:D100) -> 442620 | F102: Numerator | G102: =SUMPRODUCT(G96:H96,G97:H97,G98:H98,G99:H99,G100:H100) -> 128505.12 | M102: Numerator | N102: =SUMPRODUCT(N96:O96,N97:O97,N98:O98,N99:O99,N100:O100) -> 450000 | Q102: Numerator | R102: =SUMPRODUCT(R96:S96,R97:S97,R98:S98,R99:S99,R100:S100) -> 130800
B103: Denominator | C103: =SUMPRODUCT(C97:D97,C98:D98,C99:D99,C100:D100) -> 295560 | F103: Denominator | G103: =SUMPRODUCT(G97:H97,G98:H98,G99:H99,G100:H100) -> 78112.56 | M103: Denominator | N103: =SUMPRODUCT(N97:O97,N98:O98,N99:O99,N100:O100) -> 300000 | Q103: Denominator | R103: =SUMPRODUCT(R97:S97,R98:S98,R99:S99,R100:S100) -> 79400
B105: D( Fixed ) | C105: =C102/C103 -> 1.497563946 | F105: D ( Float ) | G105: =G102/G103 -> 1.645127493 | M105: D( Fixed ) | N105: =N102/N103 -> 1.5 | Q105: D ( Float ) | R105: =R102/R103 -> 1.647355164
M106: +/- | N106: =N105-C105 -> 0.002436053593 | Q106: +/- | R106: =R105-G105 -> 0.002227670787
B112: Modified Duration, MD
M114: Modified Duration Approximation
B116: Fixed Leg | F116: Float Leg | M116: Fixed Leg | Q116: Float Leg
B117: D( Fixed ) | C117: =C105 -> 1.497563946 | F117: D( Float ) | G117: =G105 -> 1.645127493 | M117: D( Fixed ) | N117: =N105 -> 1.5 | Q117: D( Float ) | R117: =R105 -> 1.647355164
B118: Par Rate, p | C118: =$C$60 -> 0.003964299635 | F118: Par Rate, p | G118: =$C$60 -> 0.003964299635 | M118: Par Rate, p | N118: =$N$60 -> 0.00397 | Q118: Par Rate, p | R118: =$N$60 -> 0.00397
B119: MD( Fixed ) | C119: =C117/(1+C118) -> 1.491650596 | F119: MD( Float ) | G119: =G117/(1+G118) -> 1.638631467 | M119: MD( Fixed ) | N119: =N117/(1+N118) -> 1.494068548 | Q119: MD( Float ) | R119: =R117/(1+R118) -> 1.640841025
M120: +/- | N120: =N119-C119 -> 0.002417951373 | Q120: +/- | R120: =R119-G119 -> 0.002209558043
M129: Swap PV01 Approximation
B130: Swap PV01
B131: Swap Type | C131: Receiver | M131: Swap Type | N131: Receiver
B132: Phi | C132: =IF(C131="Receiver",1,-1) -> 1 | M132: Phi | N132: =IF(N131="Receiver",1,-1) -> 1
B133: A( Fixed ) | C133: =C36 -> 19704000 | M133: A( Fixed ) | N133: =N36 -> 20000000
B134: PV01( Swap ) | C134: =C132*C133/10000 -> 1970.4 | M134: PV01( Swap ) | N134: =N132*N133/10000 -> 2000
M135: +/- | N135: =N134-C134 -> 29.6
M136: +/- % | N136: =N135/C134 -> 0.01502233049
M142: Swap DV01 Approximation
B143: Swap DV01
B144: Swap Type | C144: Receiver | M144: Swap Type | N144: Receiver
B145: Phi | C145: =IF(C144="Receiver",1,-1) -> 1 | M145: Phi | N145: =IF(N144="Receiver",1,-1) -> 1
B147: Libor Forecast Rate Risk | E147: OIS Discounting Risk ( Swap ) | H147: OIS Discounting Risk ( Spread ) | M147: Libor Forecast Rate Risk | P147: OIS Discounting Risk ( Swap ) | S147: OIS Discounting Risk ( Spread )
B148: PV01( Swap ) | C148: =C134 -> 1970.4 | E148: PV( Swap ) | F148: =C84 -> 217447.44 | H148: PV( Spread ) | I148: 0 | M148: PV01( Swap ) | N148: =N134 -> 2000 | P148: PV( Swap ) | Q148: =N84 -> 220600 | S148: PV( Spread ) | T148: 0
E149: MD( Fixed ) | F149: =C119 -> 1.491650596 | H149: MD( Float ) | I149: =G119 -> 1.638631467 | P149: MD( Fixed ) | Q149: =N119 -> 1.494068548 | S149: MD( Float ) | T149: =R119 -> 1.640841025
E150: OIS Risk | F150: =$C$145*F148*F149/10000 -> 32.43556036 | H150: OIS Risk | I150: =$C$145*I148*I149/10000 -> 0 | P150: OIS Risk | Q150: =$N$145*Q148*Q149/10000 -> 32.95915217 | S150: OIS Risk | T150: =$N$145*T148*T149/10000 -> 0
B152: Risk Breakdown | M152: Risk Breakdown
B153: Libor Risk | C153: =C145*C148 -> 1970.4 | D153: Forecast Risk | M153: Libor Risk | N153: =N145*N148 -> 2000 | O153: Forecast Risk
B154: OIS Risk | C154: =F150+I150 -> 32.43556036 | D154: Discounting Risk | M154: OIS Risk | N154: =Q150+T150 -> 32.95915217 | O154: Discounting Risk
B155: DV01( Swap ) | C155: =C153+C154 -> 2002.83556 | D155: Total Risk | M155: DV01( Swap ) | N155: =N153+N154 -> 2032.959152 | O155: Total Risk
M156: +/- | N156: =N155-C155 -> 30.12359181
M157: +/- % | N157: =N156/C155 -> 0.01504047182
M169: Hedge Ratio Approximation
B171: DV01( Swap ) | C171: =C155 -> 2002.83556 | M171: DV01( Swap ) | N171: =N155 -> 2032.959152
B172: DV01( Hedge ) | C172: 5000 | M172: DV01( Hedge ) | N172: 5000
B173: Hedge Ratio | C173: =C171/C172 -> 0.4005671121 | M173: Hedge Ratio | N173: =N171/N172 -> 0.4065918304
B175: Swap Notional | C175: 10000000 | M175: Swap Notional | N175: 10000000
B176: Hedge Qty | C176: =C175*C173 -> 4005671.121 | M176: Hedge Qty | N176: =N175*N173 -> 4065918.304
M177: +/- | N177: =N176-C176 -> 60247.18362
M178: +/- % | N178: =N177/C176 -> 0.01504047182

Sheet Cashflow Diagrams
I3: Fixed Leg Cashflows
F5: N rFixed t1 | I5: N rFixed t2 | L5: N rFixed t3 | O5: N rFixed t4
D9: t0 | G9: t1 | J9: t2 | M9: t3 | P9: t4
R10: time, t
L14: N L2 t3
I15: N L1 t2 | O15: N L3 t4
F16: N L0 t1
I17: Float Leg Cashflows
C19: Par Adjustment
C21: N( 100 - B )/100
I23: Fixed Leg: Bond Coupons
F25: N c t1 | I25: N c t2 | L25: N c t3 | O25: N c t4
D29: t0 | G29: t1 | J29: t2 | M29: t3 | P29: t4
R30: time, t
L34: N ( L2 + s ) t3
I35: N ( L1 + s ) t2 | O35: N ( L3 + s ) t4
F36: N ( L0 + s )t1
I37: Float Leg: Funding Coupons + Asset Swap Spread
